Cogmind - Beta 12 @@@ ROGUE MODE // 2024.01.26 @ 22:19:09 Player: Dosh Result: Destroyed by EQ-020 with Railgun Performance ------------- Evolutions (9) 4500 Regions Visited (39) 7800 Robots Destroyed (489) 2445 Value Destroyed (23724) 23724 Prototype IDs (71) 1420 Alien Tech Used (0) 0 Bonus (35197) 35197 TOTAL SCORE: 75086 Bonus ------- High Alert Combat Kills 5420 Follower Combat Kills 16658 Entered Garrisons 400 Network Hubs Disabled 200 Aligned with FarCom 300 Met Data Miner 300 Met Warlord at Base 500 MAIN.C Attacked Warlord 500 Warlord Defense Kills 862 A7 Reached Mainframe 300 Met Warlord at Research 2000 Destroyed MAIN.C Guards 500 Met MAIN.C 5000 Destroyed MAIN.C Shell 5000 Met Warlord at Command 2000 Friendly Fire -4743 Cogmind --------- Core Integrity 0/1600 Matter 21/300 Energy 100/100 System Corruption 27% Temperature Cool (0) Movement Core (50) Location -1/Command Parts ------- > --- POWER (3) -------- (None) > --- PROPULSION (6) --- (None) > --- UTILITY (13) ----- (None) > --- WEAPON (3) ------- (None) > --- INVENTORY (5) ---- Biometal Heavy Treads Biometal Heavy Treads Helical Railgun Peak State ------------ > --- POWER ------------ Quantum Reactor Vortex Chain Reactor > --- PROPULSION ------- Myomer Leg Myomer Leg Myomer Leg Biometal Leg Centrium Leg Centrium Leg > --- UTILITY ---------- High-capacity Storage Unit Spectral Analyzer Experimental Core Analyzer Improved Transmission Jammer Layered Heavy Armor Plating Experimental EM Disruption Field Advanced Remote Shield Advanced Hacking Suite Advanced Hacking Suite Experimental System Shield Combat Drone Bay > --- WEAPON ----------- Helical Railgun Hardcell Cannon Compact Linear Accelerator > --- INVENTORY -------- Biometal Heavy Treads Advanced Heat Sink Energy Well Experimental Matter Compressor Launcher Loader Experimental Phase Shifter Antimissile System Improved Hacking Suite Long-range Tractor Beam Mapping Drone Bay Combat Drone Bay Vortex Driver Enhanced Nova Cannon Gamma Bomb Array Gamma Bomb Array Vortex Catalyst Activator [Rating: 206] Favorites ----------- Power Quantum Reactor Engine Heavy Deuterium Engine Power Core Light Nuclear Core Reactor Quantum Reactor Propulsion Centrium Heavy Treads Treads Centrium Heavy Treads Leg Myomer Leg Flight Unit Flying Fortress v7 Utility High-capacity Storage Unit Device Combat Drone Bay Storage High-capacity Storage Unit Processor Experimental Core Analyzer Hackware Advanced Hacking Suite Protection Improved Heavy Armor Plating Weapon Enhanced Coil Gun Energy Gun Vortex Shotgun Energy Cannon Light EM Pulse Cannon Ballistic Gun Enhanced Coil Gun Ballistic Cannon Heavy Mass Driver Launcher Rocket Array Special Weapon Advanced Remote Datajack Impact Weapon Heavy Mace Build | -11 -10 -10 -10 -9 -8 -7 -7 -7 -7 -7 -7 -6 -6 -6 -6 -6 -6 -6 -6 -6 -5 -5 -5 -5 -5 -5 -5 -5 -4 -4 -4 -4 -4 -4 -3 -3 -2 -1 -1 ------- Run | Jun Mat Min Exi Min Mat Fac Gar Fac Low Low Dat Pro Fac Was Fac Gar Fac Low Low Zio Pro Fac Was Fac Ext Cet Arc Hub Fac Was Fac Upp Upp War Pro Res Res Acc Com Slots Evolved 18 | . . . . . 4 2 . . . . . . 2 . . . . . . . . 2 . . . . . . 2 . . . . . . 2 2 2 . Power 2 | . . . . . . . . . . . . . . . . . . . . . . 1 . . . . . . . . . . . . . 1 . . . Propulsion 4 | . . . . . 2 . . . . . . . . . . . . . . . . . . . . . . . . . . . . . . . 2 . . Utility 11 | . . . . . 2 2 . . . . . . 2 . . . . . . . . 1 . . . . . . 2 . . . . . . 1 . 1 . Weapon 1 | . . . . . . . . . . . . . . . . . . . . . . . . . . . . . . . . . . . . . . 1 . Parts Attached 463 | 6 8 . . 3 33 8 11 17 2 6 1 4 5 3 25 10 14 5 9 . 2 14 10 16 5 4 3 12 25 1 27 3 3 14 . 50 40 11 53 Power 38 | 1 2 . . . 3 . . 2 . . . 2 2 . 2 1 . . . . . 1 3 . . 2 . 1 . . 2 . . 1 . 4 4 . 5 Engine 11 | 1 2 . . . 2 . . 2 . . . 1 2 . 1 . . . . . . . . . . . . . . . . . . . . . . . . Core 5 | . . . . . 1 . . . . . . 1 . . 1 . . . . . . . . . . . . . . . . . . . . . . . 2 Reactor 22 | . . . . . . . . . . . . . . . . 1 . . . . . 1 3 . . 2 . 1 . . 2 . . 1 . 4 4 . 3 Propulsion 71 | 2 3 . . 1 11 . 1 8 . . . 2 . 1 7 3 2 . 1 . . . 1 1 . 2 . . 2 . . . . . . 2 12 2 7 Treads 56 | 2 3 . . 1 11 . 1 7 . . . 2 . . 7 3 2 . 1 . . . 1 1 . 2 . . 2 . . . . . . 2 2 . 6 Leg 13 | . . . . . . . . . . . . . . . . . . . . . . . . . . . . . . . . . . . . . 10 2 1 Wheel . | . . . . . . . . . . . . . . . . . . . . . . . . . . . . . . . . . . . . . . . . Hover . | . . . . . . . . . . . . . . . . . . . . . . . . . . . . . . . . . . . . . . . . Flight 2 | . . . . . . . . 1 . . . . . 1 . . . . . . . . . . . . . . . . . . . . . . . . . Utility 236 | 1 2 . . . 10 4 2 5 2 2 . . 3 . 12 2 8 5 4 . 1 11 3 12 3 . 3 8 22 1 21 3 1 4 . 31 15 7 28 Device 162 | . . . . . 3 3 . 4 2 1 . . 2 . 6 2 5 2 3 . 1 7 3 10 3 . 1 6 16 1 12 2 . 2 . 26 9 4 26 Storage 6 | 1 1 . . . 1 . . . . . . . . . . . . . 1 . . 1 . . . . . . . . . . . 1 . . . . . Processor 6 | . . . . . 1 . . . . . . . . . 1 . 1 . . . . . . . . . . . . . 1 . . 1 . . 1 . . Hackware 18 | . . . . . . . 1 1 . . . . 1 . 2 . . . . . . 2 . . . . 2 . 4 . 1 . . . . 1 . 2 1 Protection 44 | . 1 . . . 5 1 1 . . 1 . . . . 3 . 2 3 . . . 1 . 2 . . . 2 2 . 7 1 1 . . 4 5 1 1 Artifact . | . . . . . . . . . . . . . . . . . . . . . . . . . . . . . . . . . . . . . . . . Weapon 118 | 2 1 . . 2 9 4 8 2 . 4 1 . . 2 4 4 4 . 4 . 1 2 3 3 2 . . 3 1 . 4 . 2 9 . 13 9 2 13 Energy Gun 1 | . . . . . . . . . . . . . . . . . . . . . . . . . . . . . . . . . . 1 . . . . . Energy Cannon 12 | . . . . . 1 1 2 . . . . . . . . . . . . . . . . . . . . . . . . . . 1 . 1 1 1 4 Ballistic Gun 55 | 2 1 . . 1 5 1 2 . . . . . . . 2 3 4 . 2 . 1 2 3 2 1 . . 2 1 . 3 . 1 5 . 8 2 . 1 Ballistic Cannon 17 | . . . . . 2 1 2 1 . 2 1 . . 2 2 . . . . . . . . . . . . . . . . . . . . . 2 1 1 Launcher 31 | . . . . 1 1 1 2 1 . 2 . . . . . . . . 2 . . . . 1 . . . 1 . . 1 . 1 2 . 4 4 . 7 Special Weapon 1 | . . . . . . . . . . . . . . . . 1 . . . . . . . . . . . . . . . . . . . . . . . Impact Weapon 1 | . . . . . . . . . . . . . . . . . . . . . . . . . 1 . . . . . . . . . . . . . . Slashing Weapon . | . . . . . . . . . . . . . . . . . . . . . . . . . . . . . . . . . . . . . . . . Piercing Weapon . | . . . . . . . . . . . . . . . . . . . . . . . . . . . . . . . . . . . . . . . . Special Melee Weapon . | . . . . . . . . . . . . . . . . . . . . . . . . . . . . . . . . . . . . . . . . Unidentified Prototypes 34 | . . . . . 1 . . 3 . . . . . . . . 3 . . . . 1 . . . 1 . 2 2 . 2 . . 8 . 3 1 . 7 Corrupted Parts 2 | . . . . . . . . . . . . . . . . . . . . . 1 . . . . . . . . . . . . . . . . . 1 System Corruption 18 | . . . . . . . . . . . . . . . . . . . . . 9 . . . . . . . . . . . . . . . . . 9 Parts Lost 62 | . 3 . . 1 3 . 3 . . 2 . 1 . . . . . . 1 . . 2 . . . . . 1 2 . 2 . . . . 3 11 . 27 Power 9 | . 1 . . . 1 . . . . . . . . . . . . . . . . . . . . . . . . . . . . . . . . . 7 Propulsion 10 | . . . . 1 1 . 1 . . . . 1 . . . . . . . . . . . . . . . . . . . . . . . . 2 . 4 Utility 37 | . 1 . . . 1 . 2 . . 2 . . . . . . . . 1 . . 2 . . . . . 1 1 . 2 . . . . 3 8 . 13 Weapon 6 | . 1 . . . . . . . . . . . . . . . . . . . . . . . . . . . 1 . . . . . . . 1 . 3 Highest Loss Streak 9 | . 2 . . 1 2 . 2 . . 2 . 1 . . . . . . 1 . . 1 . . . . . 1 1 . 1 . . . . 2 9 . 8 To Critical Strikes . | . . . . . . . . . . . . . . . . . . . . . . . . . . . . . . . . . . . . . . . . Average Slot Usage (%) 82 | . 94 85 85 84 95 96 94 83 84 82 76 84 79 48 82 84 79 80 79 80 80 81 78 75 76 76 76 78 83 84 83 84 84 80 78 81 78 84 74 Engine 2 | . 13 14 14 14 4 7 7 6 7 7 7 6 6 6 5 3 . . . . . . . . . . . . . . . . . . . . . . . Reactor 6 | . . . . . . . . . . . . . . . . 2 6 6 6 6 6 10 11 11 11 11 11 11 10 10 9 10 10 7 5 11 11 8 7 Treads 17 | . 27 28 28 27 34 30 30 29 30 30 30 30 26 1 24 24 20 20 19 20 20 17 13 11 11 11 11 11 9 10 10 10 10 10 10 8 5 . 6 Leg 1 | . . . . . . . . . . . . . . . . . . . . . . . . . . . . . . . . . . . . . 10 24 11 Device 13 | . . . . . 6 12 15 15 15 13 15 15 13 13 8 12 10 12 12 13 13 14 11 10 11 11 10 13 17 21 17 22 20 15 15 18 13 15 15 Storage 5 | . 14 14 14 14 9 7 7 7 7 7 7 7 6 6 6 6 6 6 6 6 6 5 5 5 5 5 5 5 5 5 5 5 5 5 5 4 4 4 4 Processor 4 | . . . . . 7 7 1 . . . . . . . 5 . 2 6 6 6 6 5 5 5 5 5 5 5 5 5 5 5 5 7 10 9 9 8 8 Hackware 9 | . . . . . . . 3 6 7 7 7 7 12 13 13 13 13 6 6 6 6 7 11 11 11 11 11 11 14 15 14 10 10 10 10 12 6 11 10 Protection 6 | . 8 . . . 9 14 11 7 7 7 7 7 6 . 5 6 6 5 6 6 6 5 5 4 5 5 5 5 8 5 7 8 10 12 10 4 5 4 3 Ballistic Gun 9 | . 28 28 28 27 14 10 . . . . . . . . 6 12 13 13 12 13 13 11 11 10 10 11 11 11 10 10 9 10 9 9 10 8 3 4 3 Ballistic Cannon 1 | . . . . . 1 1 11 6 7 6 . 7 6 . 2 . . . . . . . . . . . . . . . . . . . . . 3 4 3 Naked Turns 1 | . . . . . . . . . . . . . . . . . . . . . . . . . . . . . . . . . . . . . . . 1 Heaviest Build 163 | 14 30 29 29 29 70 85 87 92 92 92 89 89 89 85 96 107 107 107 108 104 104 118 121 131 129 137 137 137 138 138 139 139 144 144 127 147 158 163 157 Greatest Support 235 | 40 40 40 40 40 88 86 86 92 92 92 92 101 101 101 106 145 145 145 145 75 75 145 145 145 140 160 160 160 160 160 160 160 160 160 160 160 161 163 235 Greatest Overweight (x) 2 | . . . . . . . 1 1 . . . . . 1 1 1 . . 1 1 1 1 . . . . . . 1 . . . . . . 1 2 1 1 Average Overweight (x) . | . . . . . . . . . . . . . . . . . . . . 1 1 . . . . . . . . . . . . . . . . . . Largest Inventory Capacity 20 | 8 15 15 15 15 20 20 20 20 20 20 20 20 20 20 20 20 20 20 20 20 20 20 20 20 20 20 20 20 20 20 20 20 20 20 20 20 20 20 20 Average Capacity 19 | 7 11 15 15 15 19 20 20 20 20 20 20 20 20 20 20 20 20 20 20 20 20 20 20 20 20 20 20 20 20 20 20 20 20 20 20 20 20 20 19 Most Carried 20 | 3 9 10 14 15 20 20 20 20 20 20 19 20 20 20 20 20 20 20 20 18 20 20 20 20 20 20 20 19 20 20 20 19 20 20 20 20 20 20 20 Average Carried 18 | 1 6 9 12 14 18 18 18 19 19 17 19 18 19 19 19 19 19 19 18 18 18 17 19 19 19 19 18 18 18 19 19 18 19 19 20 18 19 19 17 Final Capacity 20 | 8 15 15 15 15 20 20 20 20 20 20 20 20 20 20 20 20 20 20 20 20 20 20 20 20 20 20 20 20 20 20 20 20 20 20 20 20 20 20 5 Final Carried 20 | 3 9 10 14 14 18 19 20 20 20 19 19 19 20 20 20 20 20 20 18 18 19 20 20 19 19 20 18 19 19 20 18 19 20 20 20 20 19 20 5 Class Distribution -------------------- 36% | Mutant 35% | Hacker-Mutant 26% | Scavenger-Mutant Dominant Class ---------------- Mutant | -10/Materials Mutant | -10/Mines Mutant | -10/Exiles Mutant | -9/Mines Mutant | -8/Materials Mutant | -7/Factory Mutant | -7/Garrison Mutant | -7/Factory Mutant | -7/Lower Caves Mutant | -7/Lower Caves Mutant | -7/Data Miner Mutant | -6/Proximity Caves Hacker-Mutant | -6/Factory Hacker-Mutant | -6/Waste Hacker-Mutant | -6/Factory Hacker-Mutant | -6/Garrison Hacker-Mutant | -6/Factory Mutant | -6/Lower Caves Mutant | -6/Lower Caves Mutant | -6/Zion Mutant | -5/Proximity Caves Mutant | -5/Factory Hacker-Mutant | -5/Waste Hacker-Mutant | -5/Factory Scavenger-Mutant | -5/Extension Scavenger-Mutant | -5/Cetus Scavenger-Mutant | -5/Archives Scavenger-Mutant | -5/Hub_04(d) Scavenger-Mutant | -4/Factory Scavenger-Mutant | -4/Waste Hacker-Mutant | -4/Factory Scavenger-Mutant | -4/Upper Caves Scavenger-Mutant | -4/Upper Caves Hacker-Mutant | -4/Warlord Hacker-Mutant | -3/Proximity Caves Hacker-Mutant | -3/Research Hacker-Mutant | -2/Research Scavenger-Mutant | -1/Access Hacker-Mutant | -1/Command Resources | -11 -10 -10 -10 -9 -8 -7 -7 -7 -7 -7 -7 -6 -6 -6 -6 -6 -6 -6 -6 -6 -5 -5 -5 -5 -5 -5 -5 -5 -4 -4 -4 -4 -4 -4 -3 -3 -2 -1 -1 ----------- Run | Jun Mat Min Exi Min Mat Fac Gar Fac Low Low Dat Pro Fac Was Fac Gar Fac Low Low Zio Pro Fac Was Fac Ext Cet Arc Hub Fac Was Fac Upp Upp War Pro Res Res Acc Com Matter Collected 18408 | 216 610 6 . 98 1025 221 846 1093 510 398 . 195 118 . 837 453 396 230 539 22 54 583 302 684 220 132 274 641 615 179 749 87 230 277 42 2413 1230 300 1583 Remotely 282 | . . . . . . . . . 157 . . . . . . . . . . . . . . . . . . . . . . . . . . . . . 125 Salvage Created 23307 | . 832 . . 145 1699 168 900 921 249 310 . 200 188 259 524 204 404 157 668 67 . 1064 1084 1420 328 117 459 1279 905 923 963 131 753 260 20 3444 676 257 1329 Parts 1148 | . 52 . . 11 90 11 42 51 11 14 . 8 3 3 39 7 18 10 30 3 . 47 22 92 15 2 20 79 51 11 52 4 18 9 4 201 22 21 75 Haulers Intercepted 10 | . 2 . . . 1 . . 2 . . . . 1 . . . . . . . . 1 . 1 . . . 1 . . . . . . . 1 . . . Recyclers Shooed 8 | . . . . . . . . 3 . . . . . . 1 . . . . . . . . . 2 . . . 1 . 1 . . . . . . . . Parts Field Recycled 15 | . . . . . . 15 . . . . . . . . . . . . . . . . . . . . . . . . . . . . . . . . . Retrieved Matter 153 | . . . . . . 153 . . . . . . . . . . . . . . . . . . . . . . . . . . . . . . . . . Parts Self-Destructed 232 | . . . . . . . . . 3 22 . 12 . . . . . 54 65 . 7 . . . . . . . . . . 14 51 . 4 . . . . Prevented 1 | . . . . . . . . . . . . . . . . . . . 1 . . . . . . . . . . . . . . . . . . . . Kills | -11 -10 -10 -10 -9 -8 -7 -7 -7 -7 -7 -7 -6 -6 -6 -6 -6 -6 -6 -6 -6 -5 -5 -5 -5 -5 -5 -5 -5 -4 -4 -4 -4 -4 -4 -3 -3 -2 -1 -1 ------- Run | Jun Mat Min Exi Min Mat Fac Gar Fac Low Low Dat Pro Fac Was Fac Gar Fac Low Low Zio Pro Fac Was Fac Ext Cet Arc Hub Fac Was Fac Upp Upp War Pro Res Res Acc Com Combat Hostiles Destroyed 367 | . 19 . . 3 27 3 29 15 6 12 . 6 . 1 11 3 6 2 11 1 . 15 3 21 5 2 1 19 14 4 14 2 14 6 2 49 16 5 20 Melee 4 | . . . . . . . . . . . . . . . 1 . . . . . . . . . . . . 2 . . . . . . . 1 . . . Guns 213 | . 19 . . 1 24 1 1 . . . . . . . 3 3 6 2 4 1 . 14 3 16 5 2 1 14 14 4 14 2 9 1 2 35 3 4 5 Cannons 80 | . . . . . 2 . 19 15 6 6 . 6 . 1 7 . . . . . . . . . . . . . . . . . . . . . 4 1 13 AOE 67 | . . . . 2 1 2 9 . . 6 . . . . . . . . 7 . . 1 . 4 . . . 3 . . . . 5 5 . 13 8 . 1 Classes Destroyed 30 | . 5 . . 3 7 . 1 1 3 . . . . 1 . 1 . . 3 . . . . 1 . . . . . . . . 1 . . 1 1 . 1 Worker 23 | . . . . . 3 . . 5 . . . . . . . . 1 . . . . . . 1 . . . 2 1 . . . . . . 8 . . 2 Builder 23 | . . . . 1 . . . 3 . . . . . . . . . . . . . 2 . 3 . . . 3 . . 3 . . . . 8 . . . Tunneler 5 | . . . . . 2 . . . . . . . . . . . . . . . . . . . 1 . . 1 . . . . . . . 1 . . . Hauler 10 | . 2 . . . 1 . . 2 . . . . 1 . . . . . . . . 1 . 1 . . . 1 . . . . . . . 1 . . . Recycler 18 | . . . . 1 1 2 . 7 . . . . 1 . 1 . . . . . . . . 1 . . . . . . . . . . . 3 . . 1 Minesweeper 2 | . . . . . . . . . 1 . . . . . . . . 1 . . . . . . . . . . . . . . . . . . . . . Mechanic 2 | . . . . . 1 . . . . . . . . . . . . . . . . . . . . . . . . . . . . . . 1 . . . Operator 15 | . 2 . . . 1 . . 2 . . . . . . . . . . . . . . . . . . 9 . . . . . . . . . . . 1 Drone 5 | . . . . . . . . . . . . . . . . . . . 1 . . 1 . . . . . 1 . . . . . . 2 . . . . Watcher 14 | . 1 . . . 3 . . 2 . . . . . . 1 . . . . . . . . . . . . . 1 . 1 . . . . 2 1 . 2 Swarmer 43 | . 3 . . . . 3 9 2 . 5 . 2 . . 5 . . . . . . . . . . . . 2 . . 1 . 3 . . 8 . . . Saboteur 2 | . . . . . . . . . . . . . . . . . . . . . . . . . . . . . . . . . . . . 2 . . . Grunt 117 | . 16 . . 2 14 . 8 5 . 7 . 2 . . . 2 2 1 4 . . 5 . 4 3 2 . 3 4 . 2 . 4 1 . 21 5 . . Brawler 11 | . . . . . . . 3 . . . . . . . . . . . 1 . . . . 1 . . . 1 . . 2 . 3 . . . . . . Duelist 15 | . . . . 1 1 . 1 . . . . . . . . . . . 1 . . . . . 2 . . 3 . . . 1 1 1 . 1 . . 2 Protector 4 | . . . . . . . . . . . . . . . . . . . . . . . . 2 . . . 1 . . . . . . . 1 . . . Sentry 27 | . . . . . 6 . 6 1 . . . 1 . . 1 . 2 . 1 . . 2 . 1 . . 1 . 1 . . . 1 . . 2 1 . . Demolisher 4 | . . . . . . . . . . . . . . . . . . . 1 . . . . 1 . . . . . . 1 . . . . . 1 . . Specialist 5 | . . . . . 2 . . . . . . . . . . . . . 1 . . 1 . . . . . . . . . . . 1 . . . . . Hunter 14 | . . . . . 3 . 2 1 . . . . . . 1 . 2 1 . . . 1 . 2 . . . . . . 1 . . . . . . . . Programmer 89 | . . . . . . . . 6 . . . 1 . . 4 . . . . . . 6 . 10 . . . 7 9 . 7 1 . 3 . 13 1 5 16 Heavy 2 | . . . . . 1 . . . . . . . . . . . . . . . . . . . . . . . . . . . . . . 1 . . . Behemoth 1 | . . . . . . . . . . . . . . . . . . . 1 . . . . . . . . . . . . . . . . . . . . Compactor 8 | . . . . . . . . . . . . . . 1 . . . . . . . . 3 . . . . . . 4 . . . . . . . . . Enhanced Q-Series 1 | . . . . . . . . . . . . . . . . . . . . . . . . . . . . . . . . . . . . . . . 1 Lightning 2 | . . . . . . . . . . . . . . . . . . . . . . . . . . . . 2 . . . . . . . . . . . Striker 7 | . . . . . . . . . . . . . . . . 1 . . . . . . . . . . . . . . . . . . . . 6 . . Executioner 2 | . . . . . . . . . . . . . . . . . . . . . . . . . . . . . . . . . . . . . 2 . . Samaritan 2 | . . . . . . . . . 1 . . . . . . . . . 1 . . . . . . . . . . . . . . . . . . . . Wasp 3 | . . . . . . . . . . . . . . . . . . . . . . . 3 . . . . . . . . . . . . . . . . Thug 6 | . . . . . . . . . 3 . . . . . . . . . 1 1 . . . . . . . . . . . . . 1 . . . . . Savage 1 | . . . . . . . . . . . . . . . 1 . . . . . . . . . . . . . . . . . . . . . . . . Butcher 4 | . . . . . . . . . 2 1 . . . . . . . . . . . . . . . . 1 . . . . . . . . . . . . Martyr 2 | . . . . . . . . . . . . . . . . . . . . . . . 2 . . . . . . . . . . . . . . . . Fireman 2 | . . . . . . . . . . . . . . . . . . . . . . . . . . . . . . . . . 2 . . . . . . Mutant 2 | . . . . . . . . . 1 . . . . . . . . . 1 . . . . . . . . . . . . . . . . . . . . Best Kill Streak 12 | . 5 . . 3 6 3 7 5 3 10 . 3 2 1 7 1 2 1 7 1 . 5 1 8 2 2 3 7 4 2 4 1 9 5 2 12 9 2 2 Combat Bots Only 10 | . 5 . . 3 3 3 7 3 3 10 . 3 . 1 5 1 2 1 7 1 . 4 1 7 2 2 1 4 4 2 4 1 9 5 2 7 9 2 2 Max Kills in Single Turn 10 | . 1 . . 1 2 2 3 1 1 3 . 2 1 1 1 1 2 1 8 1 . 3 1 3 2 1 1 6 2 1 2 1 5 4 1 10 2 1 1 Gunslinging 1 | . . . . . . . . . . . . . . . . . . . . . . . . . . . . . 1 . . . . . . . . . . Exploded 7 | . . . . 1 1 2 3 . . 3 . . . . . . . . 7 . . 1 . 3 . . . 3 . . . . 5 4 . 3 2 . 1 Melee 1 | . . . . . . . . . . . . . . . 1 . . . . . . . . . . . . 1 . . . . . . . 1 . . . Uniques/NPCs Destroyed 1 | . . . . . . . . . . . . . . . . . . . . . . . . . . . . . . . . . . . . . . . 1 MAIN.C Shell (-1/Command) Combat | -11 -10 -10 -10 -9 -8 -7 -7 -7 -7 -7 -7 -6 -6 -6 -6 -6 -6 -6 -6 -6 -5 -5 -5 -5 -5 -5 -5 -5 -4 -4 -4 -4 -4 -4 -3 -3 -2 -1 -1 -------- Run | Jun Mat Min Exi Min Mat Fac Gar Fac Low Low Dat Pro Fac Was Fac Gar Fac Low Low Zio Pro Fac Was Fac Ext Cet Arc Hub Fac Was Fac Upp Upp War Pro Res Res Acc Com Damage Taken 32580 | . 829 . . 161 2121 65 1257 505 498 470 . 297 . . 985 119 323 122 713 293 . 713 . 1666 281 124 14 1383 1095 . 1402 51 504 247 . 2660 3544 155 9983 Core 3300 | . 151 . . . 275 11 87 . 37 39 . 20 . . 48 7 18 . 42 . . 20 . 46 10 . . 141 29 . 35 . 59 37 . 218 360 5 1605 Absorbed by Shields 8350 | . . . . . . 25 402 191 123 128 . . . . . 49 21 73 230 105 . 670 . 952 269 120 13 789 500 . 1096 47 258 222 . 854 969 26 218 Reduced by Siege Mode 920 | . . . . . . . . . . . . . . . . . . . 7 . . 17 . 85 . . . 68 48 . 73 . 35 . . 159 200 . 228 Redirected to Shielding 52 | . 52 . . . . . . . . . . . . . . . . . . . . . . . . . . . . . . . . . . . . . . Regen/Repaired (Parts) 4738 | . 40 . . . 259 . . 593 . . . . . . 48 . 41 . . . . . 52 284 . . . . 916 . 922 . . 27 . 724 . . 832 Core Remaining (%) 74 | 100 . . . 39 50 . . . . . . 72 . . . . . . . . 86 . . . . . . 78 . . . . . . 86 83 75 . . Volleys Fired 1472 | . 85 . . 10 128 6 91 95 39 20 . 12 5 7 42 24 24 18 38 3 3 64 24 66 16 11 28 55 69 17 65 6 26 11 5 141 40 23 155 Largest 2 | . 2 . . 2 2 2 2 1 1 1 . 1 1 1 2 2 2 2 2 2 2 2 2 2 2 2 2 2 2 2 2 2 2 2 2 2 2 2 2 Hottest 240 | . 40 . . 53 104 117 117 75 75 75 . 75 75 75 75 70 78 78 90 78 78 76 60 75 60 60 60 75 68 68 68 60 75 60 60 94 185 103 240 Shots Fired 2496 | . 169 . . 17 242 10 127 96 40 21 . 12 5 7 65 49 47 33 73 6 6 112 48 128 32 23 57 109 100 29 109 12 41 21 11 247 71 42 279 Gun 1867 | . 169 . . 13 213 5 5 . . . . . . . 42 49 47 33 69 6 6 112 48 127 32 23 57 108 100 29 109 12 40 18 11 237 15 19 113 Cannon 558 | . . . . . 26 4 109 96 40 18 . 12 5 7 23 . . . . . . . . . . . . . . . . . . . . 2 45 23 148 Launcher 71 | . . . . 4 3 1 13 . . 3 . . . . . . . . 4 . . . . 1 . . . 1 . . . . 1 3 . 8 11 . 18 Special . | . . . . . . . . . . . . . . . . . . . . . . . . . . . . . . . . . . . . . . . . Kinetic 2344 | . 169 . . 13 220 7 101 96 40 18 . 12 5 7 65 49 47 33 69 6 6 112 48 127 32 23 57 108 100 29 109 12 40 18 11 237 44 42 232 Thermal 27 | . . . . . . . . . . . . . . . . . . . . . . . . . . . . . . . . . . . . . 16 . 11 Explosive 57 | . . . . 4 3 1 13 . . 3 . . . . . . . . 4 . . . . 1 . . . 1 . . . . 1 3 . 8 11 . 4 Electromagnetic 41 | . . . . . 19 2 13 . . . . . . . . . . . . . . . . . . . . . . . . . . . . 2 . . 5 Entropic 27 | . . . . . . . . . . . . . . . . . . . . . . . . . . . . . . . . . . . . . . . 27 Robot Hit Streak 30 | . 15 . . 6 18 2 16 6 6 6 . 5 3 3 15 5 7 3 13 2 5 28 30 12 3 5 11 25 16 12 11 7 11 3 1 15 23 7 21 Robot Miss Streak 8 | . 4 . . 4 7 2 4 3 2 4 . 1 1 2 3 3 7 7 5 . 1 2 2 5 2 6 5 4 2 1 3 3 3 8 3 7 6 3 6 Penetration Max 2 | . . . . . 1 . 1 . . . . 1 . . 1 1 1 . 1 1 . 1 1 1 2 . 1 2 1 1 1 1 2 . . 2 . . . Secondary Targets 26 | . . . . . 2 . . . . . . . . . . 1 1 . . . . 3 . 3 . . . 3 5 . 2 . . . . 6 . . . Max Gunslinging Chain 1 | . . . . . 1 . . . . . . . . . . 1 1 . . . . 1 . 1 . . . 1 1 . 1 . . . . 1 . . . Shots Hit Robots 1559 | . 109 . . 11 178 4 69 53 24 11 . 9 3 5 48 20 26 12 50 2 5 80 39 78 20 10 34 73 71 24 64 6 28 8 3 162 46 22 152 Core Hits 1155 | . 47 . . 7 76 6 55 29 10 26 . 6 2 2 19 15 11 8 54 2 . 37 17 66 11 3 20 69 35 7 40 5 43 46 3 188 88 10 92 Critical Kills 52 | . . . . . . . . . . . . . . . 2 2 3 2 3 1 . 3 1 6 . . 2 4 3 3 2 . 2 . . 9 2 . 2 Critical Parts Destroyed 69 | . 1 . . . 1 . . . . . . . . . 6 3 4 2 4 . . 5 2 5 1 1 2 5 8 . 4 . 2 . 1 6 . . 6 Critical Strikes 156 | . 1 . . . 2 . 8 6 2 1 . . . . 9 6 7 4 9 1 . 8 5 11 1 1 4 10 11 5 6 . 5 . 1 15 4 . 13 Meltdown 1 | . . . . . . . . . . . . . . . . . . . . . . . . . . . . . . . . . . . . . 1 . . Destroy 129 | . 1 . . . 1 . . . . . . . . . 8 6 7 4 9 1 . 8 5 11 1 1 4 10 11 5 6 . 5 . 1 15 1 . 8 Blast 25 | . . . . . 1 . 8 6 2 1 . . . . 1 . . . . . . . . . . . . . . . . . . . . . 2 . 4 Sunder 1 | . . . . . . . . . . . . . . . . . . . . . . . . . . . . . . . . . . . . . . . 1 Melee Attacks 6 | . . . . . . . . . . . . . . . . . . . . . . . . . 6 . . . . . . . . . . . . . . Impact 6 | . . . . . . . . . . . . . . . . . . . . . . . . . 6 . . . . . . . . . . . . . . Slashing . | . . . . . . . . . . . . . . . . . . . . . . . . . . . . . . . . . . . . . . . . Piercing . | . . . . . . . . . . . . . . . . . . . . . . . . . . . . . . . . . . . . . . . . Sneak Attacks . | . . . . . . . . . . . . . . . . . . . . . . . . . . . . . . . . . . . . . . . . Combat Hostiles . | . . . . . . . . . . . . . . . . . . . . . . . . . . . . . . . . . . . . . . . . Follow-up Attacks . | . . . . . . . . . . . . . . . . . . . . . . . . . . . . . . . . . . . . . . . . Damage Inflicted 69722 | . 1399 . . 375 3489 250 2907 4156 1797 1304 . 713 224 383 1441 204 448 224 1833 81 60 3114 1458 3609 977 335 1205 3739 2789 743 2477 250 2116 1486 114 9384 3863 1154 9621 Guns 34307 | . 1392 . . 108 2628 19 84 . . . . . . . 248 190 379 224 927 81 60 2658 1458 2910 947 335 1185 2631 2725 743 2368 250 1138 347 114 5359 228 523 2048 Cannons 16467 | . . . . . 545 85 1674 3901 1710 592 . 713 224 383 1135 . . . . . . . . . . . . . . . . . . . . . 1051 505 3949 Explosions 17080 | . . . . 248 288 146 1149 . . 712 . . . . . . . . 894 . . 448 . 649 . . . 973 . . . . 978 1139 . 3890 2584 . 2982 Melee . | . . . . . . . . . . . . . . . . . . . . . . . . . . . . . . . . . . . . . . . . Ramming 1868 | . 7 . . 19 28 . . 255 87 . . . . . 58 14 69 . 12 . . 8 . 50 30 . 20 135 64 . 109 . . . . 135 . 126 642 Kinetic 47682 | . 1392 . . 108 2759 76 1504 3901 1710 592 . 713 224 383 1383 190 379 224 927 81 60 2658 1458 2910 947 335 1185 2631 2725 743 2368 250 1138 347 114 5359 632 1028 4248 Thermal 1604 | . . . . . 59 . . . . . . . . . . . . . . . . 448 . . . . . . . . . . . . . . 647 . 450 Explosive 13759 | . . . . 248 229 146 1149 . . 712 . . . . . . . . 894 . . . . 649 . . . 425 . . . . 978 1139 . 3890 2584 . 716 Electromagnetic 1954 | . . . . . 414 28 254 . . . . . . . . . . . . . . . . . . . . 548 . . . . . . . . . . 710 Impact . | . . . . . . . . . . . . . . . . . . . . . . . . . . . . . . . . . . . . . . . . Slashing . | . . . . . . . . . . . . . . . . . . . . . . . . . . . . . . . . . . . . . . . . Piercing . | . . . . . . . . . . . . . . . . . . . . . . . . . . . . . . . . . . . . . . . . Entropic 2855 | . . . . . . . . . . . . . . . . . . . . . . . . . . . . . . . . . . . . . . . 2855 Highest Corruption 27 | . . . . . 3 . . 3 3 3 3 4 1 14 14 2 2 1 . . 9 1 . 8 1 1 1 13 2 6 6 3 . 2 2 2 1 . 27 Average Corruption 2 | . . . . . 1 . . 2 3 3 3 3 1 7 4 2 1 1 . . 9 1 . 2 1 1 1 6 1 3 3 2 . 2 2 1 1 . 2 Corruption Purged 52 | . . . . . . . . . . . . . . . 16 . 2 1 . . . 1 . 10 . . . . 4 . 7 3 . . . 1 . . 7 Corruption Blocked 24 | . . . . . . . . . . . . . . . . . . . . . . . . . . . . . . . . . . . . . 24 . . Effects 419 | . . . . . 29 . . 61 24 14 5 10 2 4 59 16 10 . . . . 1 . 8 9 4 13 39 1 12 29 8 . 3 6 14 2 . 36 Message Errors 99 | . . . . . 4 . . 19 6 3 . 4 . 1 14 7 3 . . . . . . 1 2 1 3 8 . 5 3 2 . 1 2 . . . 10 Matter Fused 99 | . . . . . 8 . . 9 4 3 2 3 . . 16 5 1 . . . . . . 2 4 . 3 13 1 2 6 2 . . 1 5 . . 9 Heat Flow Errors 62 | . . . . . 3 . . 15 4 2 1 2 . 1 6 . 2 . . . . . . . 1 1 2 5 . 2 8 1 . . . . 2 . 4 Energy Discharges 55 | . . . . . 4 . . 11 4 2 1 1 2 2 5 1 1 . . . . . . 1 . . 3 . . . 3 2 . 1 1 4 . . 6 Parts Rejected 4 | . . . . . . . . 1 1 . . . . . 1 . 1 . . . . . . . . . . . . . . . . . . . . . . Parts Fused 5 | . . . . . . . . 1 . 1 . . . . 1 . 1 . . . . . . . . . . . . 1 . . . . . . . . . Data Loss (minor) 39 | . . . . . 3 . . 3 1 2 1 . . . 10 2 . . . . . . . 2 1 . . 5 . 2 3 . . . 1 2 . . 1 Data Loss (major) 11 | . . . . . 3 . . . 1 . . . . . 2 . . . . . . . . . 1 . 1 1 . . 2 . . . . . . . . Misfires 24 | . . . . . 3 . . 1 2 1 . . . . 2 1 . . . . . . . 2 . 1 1 3 . . 1 . . 1 1 2 . . 2 Alerts 10 | . . . . . . . . 1 . . . . . . 2 . . . . . . . . . . 1 . . . . 2 1 . . . 1 . . 2 Misdirections 3 | . . . . . . . . . . . . . . . . . . . . . . . . . . . . 1 . . . . . . . . . . 2 Weapon Failures 8 | . . . . . 1 . . . 1 . . . . . . . 1 . . . . 1 . . . . . 3 . . 1 . . . . . . . . Overload Shots . | . . . . . . . . . . . . . . . . . . . . . . . . . . . . . . . . . . . . . . . . Overflow Damage 2419 | . . . . . 5 3 21 848 228 41 . 14 . . 227 . 13 . . . . 152 . 31 . . . . . . 21 . . . . 115 26 111 563 Projectiles 1677 | . . . . . 5 3 21 843 224 28 . 14 . . 227 . . . . . . . . . . . . . . . . . . . . . . 30 282 Explosions 419 | . . . . . . . . . . 13 . . . . . . . . . . . 152 . 16 . . . . . . . . . . . 115 26 . 97 Melee 323 | . . . . . . . . 5 4 . . . . . . . 13 . . . . . . 15 . . . . . . 21 . . . . . . 81 184 Knockbacks 91 | . . . . . . . 15 18 10 2 . 3 . . 4 . . . . . . . . . . . 1 . . . 1 . . . . . 9 5 23 Impact 7 | . . . . . . . . . . . . . . . 1 . . . . . . . . . . . 1 . . . 1 . . . . . . . 4 Kinetic 78 | . . . . . . . 11 17 10 2 . 3 . . 3 . . . . . . . . . . . . . . . . . . . . . 8 5 19 Secondary 6 | . . . . . . . 4 1 . . . . . . . . . . . . . . . . . . . . . . . . . . . . 1 . . Self-Inflicted Damage 2356 | . . . . 39 98 . . . . 49 . . . . . . . . 21 . . 66 . 19 . . . 99 . . . . 104 121 . 364 1155 . 221 Shots 85 | . . . . 1 1 . . . . 2 . . . . . . . . 1 . . 1 . 1 . . . 1 . . . . 5 5 . 10 39 . 18 Rammed 121 | . 2 1 . 5 2 . 1 26 12 . . . . . 7 1 6 . 1 . . 1 . 3 3 . 2 9 3 . 11 . . . . 13 . . 12 Targets Rammed 156 | . 2 1 . 7 4 . 1 30 13 . . . . . 8 1 7 . 1 . . 1 . 4 3 . 2 11 4 . 12 . . . . 16 . 3 25 Kicked 16 | . . . . . . . . . . . . . . . . . . . . . . . . . . . . . . . . . . . . . . 3 13 Crushed 19 | . . . . 2 2 . . 4 1 . . . . . 1 . 1 . . . . . . 1 . . . 2 1 . 1 . . . . 3 . . . Highest Temperature 366 | . 9 . . 2 366 108 273 248 252 143 171 242 . 202 272 6 208 27 64 9 27 230 87 253 139 169 219 331 51 278 269 181 19 18 . 335 313 256 358 Average Temperature 61 | . 3 . . 2 106 40 81 98 75 67 87 85 . 121 103 5 31 9 22 6 14 43 25 36 33 45 51 79 9 53 64 43 5 9 . 60 83 92 116 Received Heat Transfer 4475 | . 438 . . 12 630 . 348 54 234 44 . 96 . . 24 18 31 . 35 . . 75 . 274 72 4 4 215 200 . 162 . 53 14 . 444 205 . 789 Effects 19 | . . . . . 1 . 1 . . . . . . . . . . . . . . . . 3 . . . 2 . 1 . . . . . . . . 11 Shutdowns 1 | . . . . . . . . . . . . . . . . . . . . . . . . . . . . . . . . . . . . . . . 1 Energy Bleed 2 | . . . . . 1 . 1 . . . . . . . . . . . . . . . . . . . . . . . . . . . . . . . . Interference 15 | . . . . . . . . . . . . . . . . . . . . . . . . 3 . . . 2 . 1 . . . . . . . . 9 Matter Decay 1 | . . . . . . . . . . . . . . . . . . . . . . . . . . . . . . . . . . . . . . . 1 Siege Activations 67 | . . . . . . . . . . . . . . . . . . . 2 . . 4 1 6 2 . . 5 9 2 8 . 5 . . 16 2 . 5 Total Turns 2096 | . . . . . . . . . . . . . . . . . . . 29 . . 94 504 136 7 . . 164 206 186 193 . 50 . . 312 91 . 124 Longest Duration 504 | . . . . . . . . . . . . . . . . . . . 18 . . 40 504 39 5 . . 79 55 183 40 . 20 . . 66 69 . 49 Robots Corrupted 2 | . . . . . 1 . . . . . . . . . . . . . . . . . . . . . . . . . . . . . . . . . 1 Combat Hostiles 1 | . . . . . . . . . . . . . . . . . . . . . . . . . . . . . . . . . . . . . . . 1 Parts Fried 2 | . . . . . . . . . . . . . . . . . . . . . . . . . . . . 2 . . . . . . . . . . . Impact Corruptions 20 | . . . . . . . . 1 2 . . . . . . . 1 . . . . . . 1 . . . . . . 1 . . . . . . 5 9 Robots Melted 1 | . . . . . . . . . . . . . . . . . . . . . . . . . . . . . . . . . . . . . 1 . . Combat Hostiles 1 | . . . . . . . . . . . . . . . . . . . . . . . . . . . . . . . . . . . . . 1 . . Parts Melted 8 | . . . . . . . . . . . . . . . . . . . . . . 1 . . . . . . . . 1 . . 1 . . 3 1 1 Heat Transferred 1055 | . . . . . 100 . . . . . . . . . . . . . . . . 250 . . . . . . . . . . . . . . 555 . 150 Parts Sabotaged . | . . . . . . . . . . . . . . . . . . . . . . . . . . . . . . . . . . . . . . . . Parts Stolen . | . . . . . . . . . . . . . . . . . . . . . . . . . . . . . . . . . . . . . . . . Parts Stripped . | . . . . . . . . . . . . . . . . . . . . . . . . . . . . . . . . . . . . . . . . Power Chain Reactions 4 | . . . . . 1 . . . . . . . . . . . . . . . . . . . . . . 2 . . . . . . . . . . 1 Missiles Intercepted 15 | . . . . . . . . . . . . . . . . . . . . . . . . . . . . . . . . . . . . . . . 15 Alert | -11 -10 -10 -10 -9 -8 -7 -7 -7 -7 -7 -7 -6 -6 -6 -6 -6 -6 -6 -6 -6 -5 -5 -5 -5 -5 -5 -5 -5 -4 -4 -4 -4 -4 -4 -3 -3 -2 -1 -1 ------- Run | Jun Mat Min Exi Min Mat Fac Gar Fac Low Low Dat Pro Fac Was Fac Gar Fac Low Low Zio Pro Fac Was Fac Ext Cet Arc Hub Fac Was Fac Upp Upp War Pro Res Res Acc Com Peak Influence 1963 | . 308 76 . 94 223 133 1038 722 . . . . 91 61 349 1446 1092 . . . . 768 267 1912 1390 1446 845 1347 761 272 1423 . . . . 1963 1355 770 697 Initial 1104 | . . 76 . . . 56 7 544 . . . . . 31 42 105 758 . . . . . 263 . 932 778 498 82 588 266 50 . . . . 300 1104 716 263 Average 484 | . 171 41 . 48 85 63 659 453 . . . . 23 42 162 963 801 . . . . 373 105 980 920 1164 490 683 272 248 365 . . . . 572 1128 631 443 Maximum Alert Level 5 | . 1 . . . 1 . 3 3 . . . . . . 1 4 3 . . . . 3 1 5 4 4 3 4 3 1 4 . . . . 5 4 3 2 Low Security (%) 28 | 100 65 100 . 100 90 100 9 . . . . . 100 100 80 13 . . . . . 29 68 5 . . . 18 50 10 29 . . . . 8 . . 10 Level 1 25 | . 34 . . . 9 . 14 39 . . . . . . 19 1 . . . . . 26 31 5 1 . 45 22 18 89 51 . . . . 58 . . 31 Level 2 19 | . . . . . . . 28 56 . . . . . . . 2 24 . . . . 30 . 15 16 . 37 9 24 . 5 . . . . 5 . 56 58 Level 3 17 | . . . . . . . 47 4 . . . . . . . 37 75 . . . . 13 . 39 67 27 16 29 6 . 7 . . . . 11 22 43 . Level 4 7 | . . . . . . . . . . . . . . . . 44 . . . . . . . 25 14 72 . 20 . . 6 . . . . 8 77 . . Level 5 1 | . . . . . . . . . . . . . . . . . . . . . . . . 8 . . . . . . . . . . . 7 . . . High Security . | . . . . . . . . . . . . . . . . . . . . . . . . . . . . . . . . . . . . . . . . Max Security . | . . . . . . . . . . . . . . . . . . . . . . . . . . . . . . . . . . . . . . . . Squads Dispatched 184 | . 5 . . . 4 1 . 15 . 1 . . 3 . 8 . 11 . 1 . . 16 . 25 10 . . 11 15 . 17 . 1 . . 24 1 6 9 Investigation 36 | . 3 . . . . 1 . 3 . 1 . . 2 . 2 . 3 . . . . 2 . 2 2 . . 2 4 . 3 . . . . 4 1 1 . Extermination 54 | . . . . . . . . 6 . . . . . . 5 . 3 . . . . 4 . 5 . . . 3 5 . 7 . . . . 6 . 3 7 Reinforcement 47 | . 2 . . . 4 . . 4 . . . . 1 . 1 . 4 . . . . 6 . 7 3 . . 1 1 . 5 . . . . 7 . . 1 Assault 36 | . . . . . . . . 2 . . . . . . . . 1 . 1 . . 1 . 7 5 . . 4 2 . 2 . 1 . . 7 . 2 1 Garrison 11 | . . . . . . . . . . . . . . . . . . . . . . 3 . 4 . . . 1 3 . . . . . . . . . . Intercept . | . . . . . . . . . . . . . . . . . . . . . . . . . . . . . . . . . . . . . . . . Searches Triggered . | . . . . . . . . . . . . . . . . . . . . . . . . . . . . . . . . . . . . . . . . Data Miner Redirects 27 | . . . . . . . . . . . . . 1 . 1 . 1 . . . . 1 . 6 1 . . 3 3 . 3 . . . . 4 . 3 . Construction Impeded 7 | . . . . . . . . . . . . . . . . . 1 . . . . 1 . 1 2 . . 1 . . . . . . . 1 . . . Haulers Reinforced 10 | . . . . . . . . 2 . . . . 1 . . . . . . . . 1 . 3 . . . . . . 1 . . . . 2 . . . Active Scanning Responses . | . . . . . . . . . . . . . . . . . . . . . . . . . . . . . . . . . . . . . . . . Cargo Convoy Interrupts . | . . . . . . . . . . . . . . . . . . . . . . . . . . . . . . . . . . . . . . . . Stealth | -11 -10 -10 -10 -9 -8 -7 -7 -7 -7 -7 -7 -6 -6 -6 -6 -6 -6 -6 -6 -6 -5 -5 -5 -5 -5 -5 -5 -5 -4 -4 -4 -4 -4 -4 -3 -3 -2 -1 -1 --------- Run | Jun Mat Min Exi Min Mat Fac Gar Fac Low Low Dat Pro Fac Was Fac Gar Fac Low Low Zio Pro Fac Was Fac Ext Cet Arc Hub Fac Was Fac Upp Upp War Pro Res Res Acc Com Distress Signals 48 | . 3 . . . 3 . . 3 . . . . . . 1 . 2 . . . . . . 1 2 1 . 3 3 . 5 . . . . 5 9 1 6 Communications Jammed 639 | . . . . . . . . . . . . . . . . . . . . . . 3 . 1 . . . . 141 . 72 . . 89 1 220 . . 112 Distress Signals 630 | . . . . . . . . . . . . . . . . . . . . . . 1 . 1 . . . . 139 . 68 . . 89 . 220 . . 112 Times Spotted 1027 | . 35 . . 2 39 3 38 40 7 14 . 7 3 6 19 35 27 15 28 3 2 43 6 70 59 18 22 59 53 5 69 8 32 14 2 115 30 15 84 Peak Tracking Total 12 | . 5 . . 3 4 3 6 4 3 4 . 3 2 5 7 7 4 5 6 3 2 4 2 7 5 6 2 7 6 2 8 5 9 8 2 7 11 8 12 Tactical Retreats 50 | . 1 . . . 1 . 7 4 1 . . . . . 2 . 1 . . . . 1 . 4 2 . . 7 1 . 3 . . . . 8 3 1 3 Traps | -11 -10 -10 -10 -9 -8 -7 -7 -7 -7 -7 -7 -6 -6 -6 -6 -6 -6 -6 -6 -6 -5 -5 -5 -5 -5 -5 -5 -5 -4 -4 -4 -4 -4 -4 -3 -3 -2 -1 -1 ------- Run | Jun Mat Min Exi Min Mat Fac Gar Fac Low Low Dat Pro Fac Was Fac Gar Fac Low Low Zio Pro Fac Was Fac Ext Cet Arc Hub Fac Was Fac Upp Upp War Pro Res Res Acc Com Traps Triggered 39 | . . . . . 2 . 7 6 . . . . 1 . 2 1 1 . . . . 2 . 1 2 . . . 5 . 2 . . . . 6 . . 1 Indirectly . | . . . . . . . . . . . . . . . . . . . . . . . . . . . . . . . . . . . . . . . . Trap Hack Attempts . | . . . . . . . . . . . . . . . . . . . . . . . . . . . . . . . . . . . . . . . . Triggered . | . . . . . . . . . . . . . . . . . . . . . . . . . . . . . . . . . . . . . . . . Disarmed . | . . . . . . . . . . . . . . . . . . . . . . . . . . . . . . . . . . . . . . . . Reprogrammed . | . . . . . . . . . . . . . . . . . . . . . . . . . . . . . . . . . . . . . . . . Reused . | . . . . . . . . . . . . . . . . . . . . . . . . . . . . . . . . . . . . . . . . Traps Extracted . | . . . . . . . . . . . . . . . . . . . . . . . . . . . . . . . . . . . . . . . . Installed . | . . . . . . . . . . . . . . . . . . . . . . . . . . . . . . . . . . . . . . . . Triggered 12 | . . . . . . . . 1 . . . . . . . . . . 1 . . . . . . . . . . . . . . 9 . . . . 1 Machines | -11 -10 -10 -10 -9 -8 -7 -7 -7 -7 -7 -7 -6 -6 -6 -6 -6 -6 -6 -6 -6 -5 -5 -5 -5 -5 -5 -5 -5 -4 -4 -4 -4 -4 -4 -3 -3 -2 -1 -1 ---------- Run | Jun Mat Min Exi Min Mat Fac Gar Fac Low Low Dat Pro Fac Was Fac Gar Fac Low Low Zio Pro Fac Was Fac Ext Cet Arc Hub Fac Was Fac Upp Upp War Pro Res Res Acc Com Machines Disabled 104 | . . . . . 2 . 3 6 . . . . . . 3 1 4 1 2 1 . 8 . 17 1 5 6 21 6 . 6 1 . . . 8 . . 2 Max in Single Turn 8 | . . . . . 2 . 1 1 . . . . . . 1 . . . 1 . . 2 . 7 1 1 1 8 1 . 1 1 . . . 3 . . 1 Garrison Access 10 | . . . . . . . . 2 . . . . . . 1 . . . . . . . . . . . . 1 1 . 1 . . . . 2 1 1 . Network Hub 1 | . . . . . . . . . . . . . . . . . . . . . . . . . . . . 1 . . . . . . . . . . . Machines Repaired . | . . . . . . . . . . . . . . . . . . . . . . . . . . . . . . . . . . . . . . . . Machines Sabotaged . | . . . . . . . . . . . . . . . . . . . . . . . . . . . . . . . . . . . . . . . . Overloaded Fab Kills . | . . . . . . . . . . . . . . . . . . . . . . . . . . . . . . . . . . . . . . . . Hacking | -11 -10 -10 -10 -9 -8 -7 -7 -7 -7 -7 -7 -6 -6 -6 -6 -6 -6 -6 -6 -6 -5 -5 -5 -5 -5 -5 -5 -5 -4 -4 -4 -4 -4 -4 -3 -3 -2 -1 -1 --------- Run | Jun Mat Min Exi Min Mat Fac Gar Fac Low Low Dat Pro Fac Was Fac Gar Fac Low Low Zio Pro Fac Was Fac Ext Cet Arc Hub Fac Was Fac Upp Upp War Pro Res Res Acc Com Machines Accessed 172 | . 6 . 2 . 8 1 3 17 . 2 4 . 2 . 12 2 10 1 . . . 12 . 10 7 1 . 8 14 . 13 1 1 1 1 17 . 4 12 Terminals 104 | . 3 . . . 7 . 3 10 . 1 . . . . 6 2 6 . . . . 9 . 7 7 1 . 8 6 . 7 . . . 1 8 . 2 10 Fabricators 21 | . . . . . . . . 2 . . . . 2 . 2 . 1 . . . . 2 . 1 . . . . 4 . 3 . . . . 3 . 1 . Repair Stations 14 | . 1 . . . 1 . . 2 . . . . . . 2 . 1 . . . . . . 1 . . . . 1 . 1 . . . . 3 . . 1 Recycling Units 5 | . 2 . . . . . . . . . . . . . . . . . . . . . . . . . . . 1 . 1 . . . . . . . 1 Scanalyzers 6 | . . . . . . . . 1 . . . . . . . . 2 . . . . 1 . . . . . . 1 . . . . . . 1 . . . Garrison Access 11 | . . . . . . 1 . 2 . . . . . . 2 . . . . . . . . 1 . . . . 1 . 1 . . . . 2 . 1 . Total Hacks 647 | . 16 . 18 . 27 3 7 47 . 5 30 . 7 . 41 5 40 8 . . . 29 . 28 16 1 . 26 72 . 88 1 1 1 1 73 . 10 46 Successful 370 | . 7 . 18 . 16 1 1 24 . 5 30 . 2 . 22 1 28 8 . . . 17 . 11 10 1 . 10 42 . 49 1 1 1 1 35 . 5 23 Failed 276 | . 8 . . . 11 2 6 23 . . . . 5 . 19 4 12 . . . . 12 . 17 6 . . 16 30 . 39 . . . . 38 . 5 23 Catastrophic 48 | . . . . . . . 2 4 . . . . 1 . 3 1 2 . . . . 3 . 4 2 . . 5 4 . 9 . . . . 4 . 2 2 Database Lockouts 1 | . 1 . . . . . . . . . . . . . . . . . . . . . . . . . . . . . . . . . . . . . . Manual 220 | . 14 . 1 . 12 . . 12 . . . . . . 16 . 13 . . . . 14 . 9 8 2 . 14 30 . 46 . . 1 . 14 . . 14 Terminals 356 | . 12 . . . 18 . 7 23 . 4 . . . . 18 5 23 . . . . 21 . 15 16 1 . 26 43 . 50 . . . 1 37 . 6 30 Fabricators 75 | . . . . . . . . 4 . . . . 7 . 13 . 2 . . . . 6 . 4 . . . . 16 . 10 . . . . 10 . 3 . Repair Stations 92 | . 2 . . . 9 . . 13 . . . . . . 5 . 4 . . . . . . 6 . . . . 7 . 20 . . . . 13 . . 13 Recycling Units 7 | . 2 . . . . . . . . . . . . . . . . . . . . . . . . . . . 1 . 1 . . . . . . . 3 Scanalyzers 22 | . . . . . . . . 3 . . . . . . . . 11 . . . . 2 . . . . . . 4 . . . . . . 2 . . . Garrison Access 35 | . . . . . . 3 . 4 . . . . . . 5 . . . . . . . . 3 . . . . 1 . 7 . . . . 11 . 1 . Terminal Hacks 176 | . 1 . 18 . 6 . 1 5 . 5 30 . . . 4 1 10 8 . . . 8 . 4 8 1 . 9 19 . 11 1 1 1 1 10 . 2 11 Record 44 | . . . 17 . . . . . . 4 11 . . . . . . 8 . . . 1 . . . . . . 2 . . . . . 1 . . . . Part Schematic 12 | . . . . . . . . . . . 11 . . . . . . . . . . . . . . . . . . . 1 . . . . . . . . Robot Schematic 5 | . . . . . . . . . . . 5 . . . . . . . . . . . . . . . . . . . . . . . . . . . . Robot Analysis 6 | . 1 . . . . . . . . . . . . . 2 . . . . . . . . . . . . . . . 1 . . . . 2 . . . Prototype ID Bank 4 | . . . . . . . . . . . 3 . . . . . 1 . . . . . . . . . . . . . . . . . . . . . . Open Door 6 | . . . . . . . . . . 1 . . . . . . . . . . . . . . . 1 . . . . . 1 1 1 . . . . 1 Level Access Points 1 | . . . . . . . . . . . . . . . . . . . . . . . . . . . . . . . . . . . . 1 . . . Branch Access Points 6 | . . . . . . . . 1 . . . . . . . . 1 . . . . 1 . 1 . . . . 1 . 1 . . . . . . . . Emergency Access Points 3 | . . . . . . . . . . . . . . . . 1 . . . . . . . . . . . 1 . . . . . . . . . . 1 Machine Index 4 | . . . . . . . . . . . . . . . . . 1 . . . . 1 . . . . . 1 . . . . . . . . . . 1 Terminal Index 6 | . . . . . . . . . . . . . . . 1 . . . . . . . . . 1 . . . 1 . 1 . . . . . . 1 1 Fabricator Index 1 | . . . . . . . . . . . . . . . . . . . . . . 1 . . . . . . . . . . . . . . . . . Repair Station Index 3 | . . . . . . . . . . . . . . . 1 . . . . . . . . . . . . . 1 . 1 . . . . . . . . Garrison Index 1 | . . . . . . . . . . . . . . . . . . . . . . . . . . . . . . . . . . . . . . . 1 Alert Level 16 | . . . . . 1 . . 1 . . . . . . . . 2 . . . . 1 . . 2 . . 2 3 . 1 . . . . 1 . . 2 Unreport Threat 32 | . . . . . 3 . . 2 . . . . . . . . 4 . . . . 3 . 2 4 . . 4 5 . . . . . . 3 . 1 1 Locate Traps 4 | . . . . . 1 . . . . . . . . . . . 1 . . . . . . . . . . . . . 1 . . . . 1 . . . Security Status 1 | . . . . . . . . . . . . . . . . . . . . . . . . . . . . . 1 . . . . . . . . . . Patrol Status 4 | . . . . . . . . . . . . . . . . . . . . . . . . . . . . . 1 . 1 . . . . 1 . . 1 Recall Investigation 2 | . . . . . . . . . . . . . . . . . . . . . . . . . 1 . . . 1 . . . . . . . . . . Recall Extermination 3 | . . . . . . . . . . . . . . . . . . . . . . . . . . . . . 1 . 1 . . . . 1 . . . Recall Reinforcements 1 | . . . . . . . . . . . . . . . . . . . . . . . . . . . . . . . 1 . . . . . . . . Recall Assault 2 | . . . . . . . . . . . . . . . . . . . . . . . . 1 . . . . . . 1 . . . . . . . . Hauler Manifests 3 | . . . . . 1 . . 1 . . . . . . . . . . . . . . . . . . . . 1 . . . . . . . . . . Zone Layout 2 | . . . . . . . . . . . . . . . . . . . . . . . . . . . . 1 1 . . . . . . . . . . Garrison Registry 1 | . . . . . . . 1 . . . . . . . . . . . . . . . . . . . . . . . . . . . . . . . . EX-Prototype ID Bank 1 | . . . 1 . . . . . . . . . . . . . . . . . . . . . . . . . . . . . . . . . . . . Disengage Seal 2 | . . . . . . . . . . . . . . . . . . . . . . . . . . . . . . . . . . . . . . . 2 Fabricator Hacks 42 | . . . . . . . . 1 . . . . 2 . 9 . 2 . . . . 4 . 2 . . . . 7 . 7 . . . . 6 . 2 . Network Status 6 | . . . . . . . . 1 . . . . 1 . 1 . . . . . . . . 1 . . . . 1 . 1 . . . . . . . . Load Schematic 18 | . . . . . . . . . . . . . 1 . 4 . 1 . . . . 2 . . . . . . 3 . 3 . . . . 3 . 1 . Build 18 | . . . . . . . . . . . . . . . 4 . 1 . . . . 2 . 1 . . . . 3 . 3 . . . . 3 . 1 . Repair Station Hacks 68 | . 2 . . . 7 . . 11 . . . . . . 4 . 4 . . . . . . 3 . . . . 4 . 20 . . . . 7 . . 6 Scan Component 36 | . 1 . . . 4 . . 6 . . . . . . 2 . 2 . . . . . . 2 . . . . 2 . 10 . . . . 4 . . 3 Repair 32 | . 1 . . . 3 . . 5 . . . . . . 2 . 2 . . . . . . 1 . . . . 2 . 10 . . . . 3 . . 3 Recycling Unit Hacks 5 | . . . . . . . . . . . . . . . . . . . . . . . . . . . . . 1 . 1 . . . . . . . 3 Process 1 | . . . . . . . . . . . . . . . . . . . . . . . . . . . . . . . . . . . . . . . 1 Retrieve Matter 1 | . . . . . . . . . . . . . . . . . . . . . . . . . . . . . . . . . . . . . . . 1 Retrieve Components 3 | . . . . . . . . . . . . . . . . . . . . . . . . . . . . . 1 . 1 . . . . . . . 1 Scanalyzer 16 | . . . . . . . . 1 . . . . . . . . 10 . . . . 2 . . . . . . 2 . . . . . . 1 . . . Insert Component 9 | . . . . . . . . 1 . . . . . . . . 5 . . . . 1 . . . . . . 1 . . . . . . 1 . . . Analyze 7 | . . . . . . . . . . . . . . . . . 5 . . . . 1 . . . . . . 1 . . . . . . . . . . Garrison Access Hacks 9 | . . . . . . 1 . 2 . . . . . . 1 . . . . . . . . . . . . . 1 . 1 . . . . 2 . 1 . Unlock Access 2 | . . . . . . 1 . . . . . . . . 1 . . . . . . . . . . . . . . . . . . . . . . . . Seal Access 7 | . . . . . . . . 2 . . . . . . . . . . . . . . . . . . . . 1 . 1 . . . . 2 . 1 . Unauthorized Hacks 54 | . 4 . . . 3 . . 4 . . . . . . 4 . 2 . . . . 3 . 2 2 . . 1 8 . 9 . . . . 9 . . 3 Terminals 37 | . 2 . . . 3 . . 3 . . . . . . 2 . 2 . . . . 3 . 2 2 . . 1 6 . 3 . . . . 5 . . 3 Track 1 | . . . . . . . . . . . . . . . . . . . . . . . . . . . . . 1 . . . . . . . . . . Assimilate 5 | . . . . . 1 . . . . . . . . . . . . . . . . . . . . . . . . . . . . . . 2 . . 2 Botnet 26 | . 1 . . . 2 . . 3 . . . . . . 2 . 2 . . . . 3 . 1 2 . . 1 4 . 2 . . . . 2 . . 1 Operators 5 | . 1 . . . . . . . . . . . . . . . . . . . . . . 1 . . . . 1 . 1 . . . . 1 . . . Fabricators 7 | . . . . . . . . . . . . . . . 1 . . . . . . . . . . . . . 2 . 3 . . . . 1 . . . Report 1 | . . . . . . . . . . . . . . . . . . . . . . . . . . . . . . . 1 . . . . . . . . Prioritize 3 | . . . . . . . . . . . . . . . 1 . . . . . . . . . . . . . . . 1 . . . . 1 . . . Liberate 3 | . . . . . . . . . . . . . . . . . . . . . . . . . . . . . 2 . 1 . . . . . . . . Repair Stations . | . . . . . . . . . . . . . . . . . . . . . . . . . . . . . . . . . . . . . . . . Recycling Units 2 | . 2 . . . . . . . . . . . . . . . . . . . . . . . . . . . . . . . . . . . . . . Tunnel 2 | . 2 . . . . . . . . . . . . . . . . . . . . . . . . . . . . . . . . . . . . . . Scanalyzers . | . . . . . . . . . . . . . . . . . . . . . . . . . . . . . . . . . . . . . . . . Garrison Access 8 | . . . . . . . . 1 . . . . . . 1 . . . . . . . . . . . . . . . 3 . . . . 3 . . . Broadcast 2 | . . . . . . . . . . . . . . . . . . . . . . . . . . . . . . . 1 . . . . 1 . . . Intercept 2 | . . . . . . . . . . . . . . . . . . . . . . . . . . . . . . . 1 . . . . 1 . . . Watchers 3 | . . . . . . . . 1 . . . . . . . . . . . . . . . . . . . . . . 1 . . . . 1 . . . Jam 1 | . . . . . . . . . . . . . . . 1 . . . . . . . . . . . . . . . . . . . . . . . . Data Cores Recovered 3 | . . . . . . . . 1 . . . . . . . . 1 . . . . . . . . . . . . . . . . . . . . . 1 Used . | . . . . . . . . . . . . . . . . . . . . . . . . . . . . . . . . . . . . . . . . Hacking Detections 136 | . 3 . . . 8 1 3 14 . 1 . . 2 . 10 2 9 . . . . 12 . 10 6 1 . 8 12 . 11 . . . . 12 . 3 8 Full Trace Events 31 | . 1 . . . . 1 2 2 . 1 . . 2 . 1 . 2 . . . . 2 . 2 1 . . 2 4 . 3 . . . . 4 . 1 . Feedback Events 4 | . . . . . . . 1 . . . . . 1 . . . 1 . . . . . . . . . . . 1 . . . . . . . . . . Corruption 3 | . . . . . . . . . . . . . 1 . . . 1 . . . . . . . . . . . 1 . . . . . . . . . . Hackware Fried 1 | . . . . . . . 1 . . . . . . . . . . . . . . . . . . . . . . . . . . . . . . . . Feedback Blocked . | . . . . . . . . . . . . . . . . . . . . . . . . . . . . . . . . . . . . . . . . Robot Schematics Acquired 8 | . . . . . . . . . . . 5 . . . . . . . . 3 . . . . . . . . . . . . . . . . . . . Robots Built . | . . . . . . . . . . . . . . . . . . . . . . . . . . . . . . . . . . . . . . . . Authchips . | . . . . . . . . . . . . . . . . . . . . . . . . . . . . . . . . . . . . . . . . Time . | . . . . . . . . . . . . . . . . . . . . . . . . . . . . . . . . . . . . . . . . Total Robot Build Rating . | . . . . . . . . . . . . . . . . . . . . . . . . . . . . . . . . . . . . . . . . Part Schematics Acquired 32 | . . . . . . . . . . . 11 . . . . . 5 . . 13 . 1 . . . . . . 1 . 1 . . . . . . . . Parts Built 19 | . . . . . . . . . . . . . . . 5 . 1 . . . . 2 . 2 . . . . 2 . 4 . . . . 2 . 1 . Authchips 2 | . . . . . . . . . . . . . . . 2 . . . . . . . . . . . . . . . . . . . . . . . . Time 1567 | . . . . . . . . . . . . . . . 305 . 84 . . . . 168 . 128 . . . . 337 . 265 . . . . 224 . 56 . Total Part Build Rating 122 | . . . . . . . . . . . . . . . 30 . 6 . . . . 12 . 16 . . . . 12 . 28 . . . . 12 . 6 . Parts Repaired 32 | . 1 . . . 3 . . 5 . . . . . . 2 . 2 . . . . . . 1 . . . . 2 . 10 . . . . 3 . . 3 Time 1771 | . 26 . . . 108 . . 190 . . . . . . 111 . 93 . . . . . . 28 . . . . 216 . 763 . . . . 100 . . 136 Parts Recycled . | . . . . . . . . . . . . . . . . . . . . . . . . . . . . . . . . . . . . . . . . Recycled Matter 231 | . . . . . . . . . . . . . . . . . . . . . . . . . . . . . . . . . . . . . . . 231 Retrieved Matter 1198 | . . . . . . . . . . . . . . . . . . . . . . . . . . . . . . . . . . . . . . . 1198 Retrieved Components 22 | . . . . . . . . . . . . . . . . . . . . . . . . . . . . . 2 . 10 . . . . . . . 10 Parts Scanalyzed 8 | . . . . . . . . 1 . . . . . . . . 5 . . . . 1 . . . . . . 1 . . . . . . . . . . Part Schematics Acquired 7 | . . . . . . . . . . . . . . . . . 5 . . . . 1 . . . . . . 1 . . . . . . . . . . Parts Damaged 1 | . . . . . . . . . . . . . . . . . 1 . . . . . . . . . . . . . . . . . . . . . . Bothacking | -11 -10 -10 -10 -9 -8 -7 -7 -7 -7 -7 -7 -6 -6 -6 -6 -6 -6 -6 -6 -6 -5 -5 -5 -5 -5 -5 -5 -5 -4 -4 -4 -4 -4 -4 -3 -3 -2 -1 -1 ------------ Run | Jun Mat Min Exi Min Mat Fac Gar Fac Low Low Dat Pro Fac Was Fac Gar Fac Low Low Zio Pro Fac Was Fac Ext Cet Arc Hub Fac Was Fac Upp Upp War Pro Res Res Acc Com Used RIF Installer . | . . . . . . . . . . . . . . . . . . . . . . . . . . . . . . . . . . . . . . . . Robots Hacked . | . . . . . . . . . . . . . . . . . . . . . . . . . . . . . . . . . . . . . . . . Non-combat . | . . . . . . . . . . . . . . . . . . . . . . . . . . . . . . . . . . . . . . . . Combat . | . . . . . . . . . . . . . . . . . . . . . . . . . . . . . . . . . . . . . . . . Robot Hacks Applied . | . . . . . . . . . . . . . . . . . . . . . . . . . . . . . . . . . . . . . . . . Relay Couplers Released 12 | . . . . . . . . . . . . . . . . . . . . . . . . . . . . 4 2 . . . . . . . 6 . . Machine Destruction 4 | . . . . . . . . . . . . . . . . . . . . . . . . . . . . . 2 . . . . . . . 2 . . Programmers 8 | . . . . . . . . . . . . . . . . . . . . . . . . . . . . 4 . . . . . . . . 4 . . Fabnet Peak Effective % . | . . . . . . . . . . . . . . . . . . . . . . . . . . . . . . . . . . . . . . . . Robots Rewired 18 | . . . . . . . 3 . 2 . . . . . . 4 . 1 2 . . . . . . . . . . . . . 2 4 . . . . . Allies Hacked 1 | . . . . . . . . . . . . . . . . . . . . . . . . . . . . . 1 . . . . . . . . . . Hacks Repelled 1 | . . . . . . . . . . . . . . . . . . . . . . . . . . . . . . . . . . . . . . . 1 Allies | -11 -10 -10 -10 -9 -8 -7 -7 -7 -7 -7 -7 -6 -6 -6 -6 -6 -6 -6 -6 -6 -5 -5 -5 -5 -5 -5 -5 -5 -4 -4 -4 -4 -4 -4 -3 -3 -2 -1 -1 -------- Run | Jun Mat Min Exi Min Mat Fac Gar Fac Low Low Dat Pro Fac Was Fac Gar Fac Low Low Zio Pro Fac Was Fac Ext Cet Arc Hub Fac Was Fac Upp Upp War Pro Res Res Acc Com Total Allies 80 | . . . . . . . 5 . 2 . . 1 . . . 4 . 3 2 . . . 20 . 15 . . . 11 . 8 . 2 4 . 2 . . 1 Largest Group 20 | . . . . . . . 4 3 2 2 . 1 1 1 . 2 2 2 2 1 . . 20 15 8 6 4 2 5 . 5 . 2 6 2 2 . . 1 Highest-Rated Group 715 | . . . . . . . 199 178 50 50 . 96 96 96 . 238 238 119 62 31 . . 715 540 346 327 252 68 239 . 239 . 95 323 130 130 . . 45 Highest-Rated Ally 159 | . . . . . . . 95 95 25 25 . 96 96 96 . 119 119 119 31 31 . . 50 46 159 159 159 34 54 . 49 . 48 65 65 65 . . 45 Warlord Squad Rendezvous 2 | . . . . . . . . . . . . . . . 2 . . . . . . . . . . . . . . . . . . . . . . . . Muscle 1 | . . . . . . . . . . . . . . . 1 . . . . . . . . . . . . . . . . . . . . . . . . Pyro 1 | . . . . . . . . . . . . . . . 1 . . . . . . . . . . . . . . . . . . . . . . . . Total Orders 290 | . . . . . . . . . . . . . . . 4 21 12 7 12 1 2 29 3 17 24 3 4 23 19 5 32 5 11 . . 33 4 1 18 STAY 10 | . . . . . . . . . . . . . . . . . 1 . . . . . . . . . . 1 . . 4 . . . . 3 . . 1 FOLLOW 15 | . . . . . . . . . . . . . . . . 2 3 . . . . 1 . . 3 . . . . . 3 1 1 . . 1 . . . GUARD 1 | . . . . . . . . . . . . . . . . 1 . . . . . . . . . . . . . . . . . . . . . . . AID 1 | . . . . . . . . . . . . . . . . 1 . . . . . . . . . . . . . . . . . . . . . . . EXPLORE 5 | . . . . . . . . . . . . . . . . 1 . . . . . . . . . . . . 1 1 1 . . . . . . 1 . RETURN 258 | . . . . . . . . . . . . . . . 4 16 8 7 12 1 2 28 3 17 21 3 4 22 18 4 24 4 10 . . 29 4 . 17 Ally Attacks 3814 | . . . . . . . 8 18 9 7 . 6 6 8 25 224 138 83 156 2 11 257 160 404 383 134 52 252 282 62 417 41 160 34 . 295 16 . 164 Total Damage 77758 | . . . . . . . 162 782 182 149 . 136 146 223 431 4628 3569 1275 3287 22 190 4396 3042 8859 8389 2827 1170 3788 6157 1331 9350 802 3258 1112 . 5217 218 . 2660 Kills 503 | . . . . . . . 2 6 1 2 . 1 3 . 5 33 37 13 19 . 3 32 3 71 58 17 3 29 33 2 55 6 15 6 . 35 1 . 12 Allies Corrupted 7 | . . . . . . . . . . . . . . . . . . 1 1 . . . . . . . . 1 . . 1 1 . . . 1 . . 1 Allies Melted 7 | . . . . . . . . . . . . . . . . . . . . . . . . 2 . . . . . . . . . 2 . . 2 . 1 Intel | -11 -10 -10 -10 -9 -8 -7 -7 -7 -7 -7 -7 -6 -6 -6 -6 -6 -6 -6 -6 -6 -5 -5 -5 -5 -5 -5 -5 -5 -4 -4 -4 -4 -4 -4 -3 -3 -2 -1 -1 ------- Run | Jun Mat Min Exi Min Mat Fac Gar Fac Low Low Dat Pro Fac Was Fac Gar Fac Low Low Zio Pro Fac Was Fac Ext Cet Arc Hub Fac Was Fac Upp Upp War Pro Res Res Acc Com Robot Analysis Total 6 | . 1 . . . . . . . . . . . . . 2 . . . . . . . . . . . . . . . 1 . . . . 2 . . . Derelict Logs Recovered 17 | . . 1 . 2 . . . . 2 1 . 2 . . . . . 2 2 . 2 . . . . . . . . . . 2 1 . . . . . . Drone Launches 459 | . . . . . . . . . . . . . . . 12 28 12 10 20 . 9 40 8 27 42 6 6 40 36 11 46 2 15 . . 47 10 3 29 Drone Recoveries 432 | . . . . . . . . . . . . . . . 12 24 14 7 18 4 5 41 8 27 40 4 4 42 34 11 43 2 14 . . 40 14 . 24 Exploration | -11 -10 -10 -10 -9 -8 -7 -7 -7 -7 -7 -7 -6 -6 -6 -6 -6 -6 -6 -6 -6 -5 -5 -5 -5 -5 -5 -5 -5 -4 -4 -4 -4 -4 -4 -3 -3 -2 -1 -1 ------------- Run | Jun Mat Min Exi Min Mat Fac Gar Fac Low Low Dat Pro Fac Was Fac Gar Fac Low Low Zio Pro Fac Was Fac Ext Cet Arc Hub Fac Was Fac Upp Upp War Pro Res Res Acc Com Turns Passed 65338 | 75 1231 734 526 602 3168 500 1751 4850 1409 902 159 577 329 154 3004 1607 1932 1251 2628 668 1036 2379 1265 2447 2525 405 2221 1587 3327 448 4428 935 1238 1047 667 5131 1254 1340 3601 Spaces Moved 31504 | 41 555 458 329 303 1550 312 902 2010 814 530 102 347 194 180 1605 883 1097 751 949 243 378 1231 404 1220 1471 220 257 766 1473 142 1906 565 689 575 408 2250 655 651 2088 Core 4 | 1 . . . . . . . . . . . . . . . . . . . . . . . . . . . . . . . . . . . . . . 3 Treads 29291 | 40 555 458 329 303 1550 312 902 2010 814 530 102 347 194 4 1502 883 1097 751 949 243 378 1231 404 1220 1471 220 257 766 1473 142 1906 565 689 575 408 2250 422 . 1039 Legs 1930 | . . . . . . . . . . . . . . . . . . . . . . . . . . . . . . . . . . . . . 233 651 1046 Wheels . | . . . . . . . . . . . . . . . . . . . . . . . . . . . . . . . . . . . . . . . . Hover . | . . . . . . . . . . . . . . . . . . . . . . . . . . . . . . . . . . . . . . . . Flight 279 | . . . . . . . . . . . . . . 176 103 . . . . . . . . . . . . . . . . . . . . . . . . Fastest Speed 50 | 50 160 160 160 160 145 151 151 155 155 155 155 155 156 50 50 156 156 156 156 270 270 156 156 160 160 160 160 160 160 160 160 160 160 160 160 160 116 116 50 Average Speed 164 | 157 160 160 160 160 148 151 160 212 155 155 155 155 156 52 157 156 156 156 259 270 270 156 168 167 160 160 160 160 160 160 160 160 160 160 160 160 154 120 131 Slowest Speed 270 | 160 160 160 160 160 160 151 231 231 155 155 155 158 156 246 249 250 156 156 270 270 270 270 170 170 160 160 160 160 240 160 160 160 160 160 160 240 265 186 215 Overloaded Moves . | . . . . . . . . . . . . . . . . . . . . . . . . . . . . . . . . . . . . . . . . Propulsion Burnouts . | . . . . . . . . . . . . . . . . . . . . . . . . . . . . . . . . . . . . . . . . Robots Hopped 3 | . . . . . . . . . . . . . . . . . . . . . . . . . 3 . . . . . . . . . . . . . . Cave-ins Triggered . | . . . . . . . . . . . . . . . . . . . . . . . . . . . . . . . . . . . . . . . . Exploration Rate (%) 61 | 4 83 96 77 54 95 6 85 52 88 73 75 58 9 94 34 86 27 95 90 15 58 32 96 52 96 77 94 52 32 99 36 80 91 73 69 49 24 25 47 Regions Visited 39 Branch Regions 20 Pre-discovered Areas 11 | . 2 1 1 . . . . . 1 . 1 . . . . . . 1 2 . 1 . . . . . . . . . . . 1 . . . . . . Known Exits Taken 12 | . . . . . 1 1 . 1 . . . 1 . . 1 . 1 . . . 1 . . 1 . . . 1 . . 1 . . . . 1 1 . . Unknown Exits Taken 19 | 1 1 1 1 1 . . . . 1 1 1 . . . . . . 1 1 1 . . . . 1 1 1 . . . . 1 1 1 1 . . 1 . Scrap Searched 32 | . . 1 . . . . . . 4 1 . 1 . . . . . 4 9 2 4 . . . . . . . . . . 3 2 . 1 . . . . Spaces Dug 143 | . . . . . . . . 12 . . . . 1 . . . . . 2 3 . 26 . 6 . . . 3 19 1 25 . . 9 . 9 1 2 24 Terrain Destroyed 1505 | . . . . 44 38 7 65 57 25 79 . 7 2 3 13 3 9 12 59 3 2 68 14 108 20 11 38 243 67 4 74 3 54 68 9 155 45 9 87 Melee . | . . . . . . . . . . . . . . . . . . . . . . . . . . . . . . . . . . . . . . . . Projectile 786 | . . . . . 2 . 2 57 25 10 . 7 2 3 8 . 9 12 16 3 2 64 14 86 20 11 38 72 67 4 74 3 33 19 9 19 17 9 69 AOE 710 | . . . . 44 36 7 63 . . 69 . . . . . . . . 43 . . 4 . 22 . . . 171 . . . . 21 49 . 135 28 . 18 Terrain Rammed . | . . . . . . . . . . . . . . . . . . . . . . . . . . . . . . . . . . . . . . . . Walls Destroyed . | . . . . . . . . . . . . . . . . . . . . . . . . . . . . . . . . . . . . . . . . Machines Disabled . | . . . . . . . . . . . . . . . . . . . . . . . . . . . . . . . . . . . . . . . . Actions | -11 -10 -10 -10 -9 -8 -7 -7 -7 -7 -7 -7 -6 -6 -6 -6 -6 -6 -6 -6 -6 -5 -5 -5 -5 -5 -5 -5 -5 -4 -4 -4 -4 -4 -4 -3 -3 -2 -1 -1 --------- Run | Jun Mat Min Exi Min Mat Fac Gar Fac Low Low Dat Pro Fac Was Fac Gar Fac Low Low Zio Pro Fac Was Fac Ext Cet Arc Hub Fac Was Fac Upp Upp War Pro Res Res Acc Com Total 42577 | 49 725 459 329 398 2251 329 1077 2421 896 580 103 365 215 232 2008 1061 1271 800 1032 250 390 1585 953 1500 1599 253 2010 1010 2327 334 3167 583 784 681 412 3498 812 1165 2663 Wait 8232 | . 72 . . 75 502 . 52 244 5 20 . 1 . 30 285 94 97 11 17 5 . 236 497 171 65 9 1715 142 726 168 1100 9 41 31 . 1004 42 465 301 Move 31460 | 40 554 457 328 302 1549 312 900 2009 813 529 101 346 194 179 1604 880 1096 750 948 242 377 1231 403 1219 1464 219 256 765 1473 141 1905 564 688 574 407 2249 654 650 2088 Hop 3 | . . . . . . . . . . . . . . . . . . . . . . . . . 3 . . . . . . . . . . . . . . Pick Up 240 | 3 4 1 1 1 13 2 4 9 3 1 . . 5 3 15 11 9 3 3 . 3 15 4 9 14 3 2 10 13 3 23 1 5 6 . 14 12 2 10 Fast Attach 164 | 6 2 . . . 10 2 2 13 . 2 1 1 2 . 11 6 11 2 3 . . 5 7 4 . 2 . . 4 . 7 . . 8 . 12 18 5 18 Attach 92 | . 2 . . 1 6 1 2 1 1 4 . 2 1 3 10 . 2 2 2 . 1 3 . 3 . . . 3 5 . 3 . . . . 6 7 3 18 Detach 54 | . . . . . 3 . 1 . . 2 . 1 2 6 2 1 5 2 1 . 1 2 . . . . . . 2 . 1 . . 1 . 4 2 4 11 Swap 207 | . 4 . . 2 17 5 7 3 1 . . 1 2 . 4 4 1 1 4 . 1 6 3 9 5 2 3 9 16 1 17 3 3 6 . 32 15 3 17 Drop 297 | . . . . . 19 1 8 15 2 2 1 1 4 4 20 15 16 4 6 . 2 15 13 11 13 6 3 8 10 2 20 . 4 14 . 16 21 7 14 Fire 1472 | . 85 . . 10 128 6 91 95 39 20 . 12 5 7 42 24 24 18 38 3 3 64 24 66 16 11 28 55 69 17 65 6 26 11 5 141 40 23 155 Melee 6 | . . . . . . . . . . . . . . . . . . . . . . . . . 6 . . . . . . . . . . . . . . Ram . | . . . . . . . . . . . . . . . . . . . . . . . . . . . . . . . . . . . . . . . . Kick 16 | . . . . . . . . . . . . . . . . . . . . . . . . . . . . . . . . . . . . . . 3 13 Crush 140 | . 2 1 . 7 4 . 1 30 13 . . . . . 8 1 7 . 1 . . 1 . 4 3 . 2 11 4 . 12 . . . . 16 . . 12 Escape Stasis 13 | . . . . . . . 2 2 . . . . . . 4 1 . . . . . . . . . . . 1 . . 3 . . . . . . . . Rewire 105 | . . . . . . . 7 . 19 . . . . . . 19 . 6 6 . . . . . . . . . . . . . 15 30 . . . . 3 Trap . | . . . . . . . . . . . . . . . . . . . . . . . . . . . . . . . . . . . . . . . . Miscellaneous 76 | . . . . . . . . . . . . . . . 3 5 3 1 3 . 2 7 2 4 10 1 1 6 5 2 11 . 2 . . 4 1 . 3 Route ------- -11/Junkyard -10/Materials (discovered 4 exits: [*Mat x3] / [*Min]) -10/Mines (discovered 3 exits: [*Mat x2] / *Exi) -10/Exiles -9/Mines -8/Materials (discovered 5 exits: *Fac x3 / [*Sto x2]) -7/Factory -7/Garrison (discovered 3 exits: *Fac x3) -7/Factory (discovered 4 exits: *Fac x2 / *Low x2) -7/Lower Caves (discovered 2 exits: *Low / *Dat) -7/Lower Caves (discovered 2 exits: *Fac / *Dat) -7/Data Miner -6/Proximity Caves -6/Factory (discovered 3 exits: Fac x2 / Low) -6/Waste -6/Factory (discovered 4 exits: *Fac x2 / *Low / Gar) -6/Garrison (discovered 3 exits: *Fac x3) -6/Factory (discovered 2 exits: *Low x2) -6/Lower Caves -6/Lower Caves (discovered 2 exits: *Fac / [*Zio]) -6/Zion -5/Proximity Caves -5/Factory (discovered 8 exits: *Fac x4 / *Upp x2 / Ext x2) -5/Waste -5/Factory (discovered 8 exits: *Fac x4 / *Upp x2 / *Ext x2) -5/Extension (discovered 2 exits: *Fac / *Cet) -5/Cetus -5/Archives (discovered 3 exits: *Fac / *Hub x2) -5/Hub_04(d) (discovered 2 exits: *Fac x2) -4/Factory (discovered 3 exits: *Res / Upp x2) -4/Waste -4/Factory (discovered 3 exits: *Res / *Upp x2) -4/Upper Caves -4/Upper Caves (discovered 2 exits: *Res / *War) -4/Warlord -3/Proximity Caves -3/Research (discovered 4 exits: *Res x3 / [*Arm]) -2/Research (discovered 2 exits: *Acc / *Qua) -1/Access -1/Command (discovered 2 exits: Sur x2) History --------- Turn | Location | Event 10 | -11/Junkyard | Discovered new exit (range 15) 76 | -11/Junkyard | Entered Materials 310 | -10/Materials | Build established: Mutant 398 | -10/Materials | Discovered new exit (range 4) 455 | -10/Materials | Central database locked down 650 | -10/Materials | Discovered new exit (range 7) 806 | -10/Materials | Discovered new exit (range 15) 873 | -10/Materials | Repaired Lgt. Treads 1020 | -10/Materials | Core integrity fell below 50% 1293 | -10/Materials | Discovered new exit (range 10) 1307 | -10/Materials | Entered Mines 1352 | -10/Mines | Met a Derelict bent on vengeance 1403 | -10/Mines | Discovered new exit (range 9) 1444 | -10/Mines | Deemed a non-threat by the Exiles lab entrance 1446 | -10/Mines | Discovered new exit (range 5) 1531 | -10/Mines | A weapon hastily lodged in a ceiling crevice suddenly fell to the ground 1808 | -10/Mines | Discovered new exit (range 15) 1977 | -10/Mines | Learned location of Zion (-6) 2041 | -10/Mines | Entered Exiles 2083 | -10/Exiles | Met 8R-AWN 2110 | -10/Exiles | Met EX-HEX 2161 | -10/Exiles | Met EX-BIN 2181 | -10/Exiles | Aligned with FarCom system 2182 | -10/Exiles | Given EX-Vault access code 2219 | -10/Exiles | Opened EX-Vault 2229 | -10/Exiles | Found Flying Fortress v7 2262 | -10/Exiles | Warned to stay clear of 0b10 Research branches 2314 | -10/Exiles | Met EX-DEC 2413 | -10/Exiles | Visited The Gauntlet 2554 | -10/Exiles | Discovered new exit (range 10) 2567 | -10/Exiles | Left Exiles lab with Flying Fortress v7 2567 | -10/Exiles | Entered Mines 2585 | -9/Mines | Learned Materials emergency access door positions 2602 | -9/Mines | Received a Rocket Launcher from a helpful Derelict 2708 | -9/Mines | Assembled infested the area 3082 | -9/Mines | Learned location of 1 exit from Materials 3129 | -9/Mines | Discovered new exit (range 5) 3169 | -9/Mines | Entered Materials 3169 | -8/Materials | Evolved 4 slots: Propulsion x2, Utility x2 3170 | -8/Materials | Identified exit to Factory 3505 | -8/Materials | Discovered new exit (range 11) 4519 | -8/Materials | Discovered exit to Factory (range 16) 5127 | -8/Materials | Repaired Adv. Treads 5168 | -8/Materials | Repaired Rocket Launcher 5252 | -8/Materials | Discovered new exit (range 13) 5553 | -8/Materials | Repaired Adv. Treads 6142 | -8/Materials | Discovered exit to Factory (range 13) 6337 | -8/Materials | Entered Factory 6337 | -7/Factory | Evolved 2 slots: Utility x2 6836 | -7/Factory | Identified exit to Garrison 6837 | -7/Factory | Entered Garrison 6878 | -7/Garrison | Triggered checkpoint 6968 | -7/Garrison | Triggered checkpoint 6972 | -7/Garrison | Triggered checkpoint 7085 | -7/Garrison | Discovered new exit (range 13) 7148 | -7/Garrison | Triggered checkpoint 7300 | -7/Garrison | Triggered checkpoint 7349 | -7/Garrison | Destroyed 7 combat bots 7358 | -7/Garrison | Discovered new exit (range 12) 7707 | -7/Garrison | Discovered new exit (range 55) 7707 | -7/Garrison | Discovered new exit (range 47) 7707 | -7/Garrison | Discovered new exit (range 25) 7960 | -7/Garrison | Triggered checkpoint 7976 | -7/Garrison | Triggered checkpoint 8034 | -7/Garrison | Triggered checkpoint 8198 | -7/Garrison | Triggered checkpoint 8210 | -7/Garrison | Hacking Suite fried by hacking feedback 8303 | -7/Garrison | Found embedded Infiltrators 8381 | -7/Garrison | Attempted to access garrison exit controls, blocked by remote lockdown 8588 | -7/Garrison | Entered Factory 8588 | -7/Factory | Accompanied by 3 allies 8745 | -7/Factory | Discovered new exit (range 13) 8917 | -7/Factory | Discovered new exit (range 13) 10124 | -7/Factory | Repaired Adv. Treads 10164 | -7/Factory | Repaired Adv. Treads 10203 | -7/Factory | Repaired Arm. Treads 10249 | -7/Factory | Repaired Imp. Shield Generator 10282 | -7/Factory | Repaired Rocket Launcher 10733 | -7/Factory | Discovered new exit (range 5) 10893 | -7/Factory | Identified exit to Lower Caves 12626 | -7/Factory | Found Prototype Launcher 12626 | -7/Factory | Identified Rocket Array 12634 | -7/Factory | Found Rocket Array 12643 | -7/Factory | Found Rocket Array 13388 | -7/Factory | First assault squad dispatched 13438 | -7/Factory | Entered Lower Caves 13444 | -7/Lower Caves | Met a Warlord Commander 13445 | -7/Lower Caves | Learned location of Warlord (-4) 13453 | -7/Lower Caves | Found Encrypted Comm Array 13469 | -7/Lower Caves | A Derelict revealed a hidden shortcut to meet someone special 13533 | -7/Lower Caves | Learned location of 1 exit from Factory 13719 | -7/Lower Caves | Attacked by a faux Warlord 14136 | -7/Lower Caves | Encountered a Warlord checkpoint 14752 | -7/Lower Caves | Discovered new exit (range 9) 14834 | -7/Lower Caves | Learned Factory emergency access door positions 14847 | -7/Lower Caves | Entered another Lower Caves area 14847 | -7/Lower Caves | Accompanied by 2 allies 14922 | -7/Lower Caves | Encountered a Warlord checkpoint 14926 | -7/Lower Caves | Discovered new exit (range 5) 15084 | -7/Lower Caves | Attracted the attention of an 0b10 base 15133 | -7/Lower Caves | Destroyed 10 combat bots 15133 | -7/Lower Caves | Learned location of 1 exit from Proximity Caves 15133 | -7/Lower Caves | Learned Factory emergency access door positions 15133 | -7/Lower Caves | Learned Armory emergency access door positions 15139 | -7/Lower Caves | Learned 4 Factory zone layouts 15635 | -7/Lower Caves | Found Prototype Device 15683 | -7/Lower Caves | Discovered new exit (range 13) 15749 | -7/Lower Caves | Entered Data Miner 15750 | -7/Data Miner | Discovered new exit (range 6) 15779 | -7/Data Miner | Met Data Miner 15824 | -7/Data Miner | Learned location of Section 7 (-2) 15824 | -7/Data Miner | Acquired the access code to Warlord's prototype stash 15852 | -7/Data Miner | Received God Mode back door access code from Data Miner 15908 | -7/Data Miner | Entered Proximity Caves 15909 | -6/Proximity Caves | Identified exit to Factory 15952 | -6/Proximity Caves | Escorted by Enhanced Grunt 15952 | -6/Proximity Caves | Attracted the attention of an 0b10 checkpoint 16000 | -6/Proximity Caves | Learned 4 Factory zone layouts 16485 | -6/Proximity Caves | Entered Factory 16485 | -6/Factory | Accompanied by 1 ally 16485 | -6/Factory | Evolved 2 slots: Utility x2 16486 | -6/Factory | Identified exit to Factory 16487 | -6/Factory | Identified exit to Lower Caves 16519 | -6/Factory | Incoming investigation squad redirected 16814 | -6/Factory | Sucked down chute 16814 | -6/Factory | Entered Waste 16829 | -6/Waste | EMP discharged 16835 | -6/Waste | 1 allies followed down the chute 16846 | -6/Waste | Spotted C-40 Crusher 16856 | -6/Waste | Destroyed C-40 Crusher 16860 | -6/Waste | Spotted C-40 Crusher 16860 | -6/Waste | Spotted C-40 Crusher 16861 | -6/Waste | Spotted C-40 Crusher 16911 | -6/Waste | Spotted C-40 Crusher 16915 | -6/Waste | Build established: Hacker-Mutant 16919 | -6/Waste | Spotted C-40 Crusher 16929 | -6/Waste | EMP discharged 16929 | -6/Waste | System corruption reached 10% 16962 | -6/Waste | Discovered new exit (range 12) 16968 | -6/Waste | Entered Factory 17012 | -6/Factory | Joined by Warlord Pyro squad 17117 | -6/Factory | Incoming investigation squad redirected 17430 | -6/Factory | Fabricated Hyp. Coil Gun (x2) 17698 | -6/Factory | Joined by Warlord Muscle squad 17830 | -6/Factory | Discovered exit to Lower Caves (range 7) 17893 | -6/Factory | Fabricated Combat Drone Bay? 17989 | -6/Factory | Fabricated Combat Drone Bay? 18088 | -6/Factory | Fabricated Combat Drone Bay? 18141 | -6/Factory | Discovered exit to Factory (range 5) 18584 | -6/Factory | Discovered exit to Factory (range 14) 18800 | -6/Factory | Repaired Imp. System Restoration Module 19833 | -6/Factory | Repaired Broken Imp. Force Field 19971 | -6/Factory | Identified exit to Garrison 19972 | -6/Factory | Entered Garrison 20238 | -6/Garrison | Triggered checkpoint 20241 | -6/Garrison | Triggered checkpoint 20285 | -6/Garrison | Spotted Striker 20286 | -6/Garrison | Spotted Striker 20316 | -6/Garrison | Allies destroyed Striker 20322 | -6/Garrison | Destroyed Striker 20376 | -6/Garrison | Rewired Executioner 20383 | -6/Garrison | Rewired Executioner 20435 | -6/Garrison | Discovered new exit (range 9) 20456 | -6/Garrison | Triggered checkpoint 20611 | -6/Garrison | Discovered new exit (range 13) 20662 | -6/Garrison | Triggered checkpoint 20818 | -6/Garrison | Triggered checkpoint 20846 | -6/Garrison | Triggered checkpoint 20916 | -6/Garrison | Discovered new exit (range 13) 20964 | -6/Garrison | Triggered checkpoint 21202 | -6/Garrison | Spotted B-75 Beast 21203 | -6/Garrison | Allies destroyed B-75 Beast 21325 | -6/Garrison | Attempted to access garrison exit controls, blocked by remote lockdown 21443 | -6/Garrison | Attempted to access garrison exit controls, blocked by remote lockdown 21579 | -6/Garrison | Entered Factory 21579 | -6/Factory | Accompanied by 6 allies 22699 | -6/Factory | Repaired Imp. System Restoration Module 22865 | -6/Factory | Found Prototype Processor 22865 | -6/Factory | Identified Exp. Core Analyzer 22945 | -6/Factory | Incoming investigation squad redirected 22999 | -6/Factory | Fabricated Combat Drone Bay (x1) 23379 | -6/Factory | First assault squad dispatched 23405 | -6/Factory | Repaired Broken Helical Railgun 23511 | -6/Factory | Entered Lower Caves 23511 | -6/Lower Caves | Accompanied by 3 allies 23513 | -6/Lower Caves | Attracted the attention of an 0b10 outpost 23837 | -6/Lower Caves | Build established: Mutant 24339 | -6/Lower Caves | Learned location of 1 exit from Factory 24352 | -6/Lower Caves | Discovered new exit (range 11) 24358 | -6/Lower Caves | Learned Factory terminal intel 24541 | -6/Lower Caves | A Commander dispatched an escort 24570 | -6/Lower Caves | Learned location of Extension (-5) 24570 | -6/Lower Caves | Learned Extension emergency access door positions 24570 | -6/Lower Caves | Learned Factory stockpile data 24570 | -6/Lower Caves | Learned Research stockpile data 24570 | -6/Lower Caves | Learned Armory garrison access intel 24762 | -6/Lower Caves | Entered another Lower Caves area 24762 | -6/Lower Caves | Accompanied by 6 allies 24763 | -6/Lower Caves | Commander's escort returned to base 24763 | -6/Lower Caves | Commander's escort returned to base 24872 | -6/Lower Caves | Attracted the attention of an 0b10 outpost 24926 | -6/Lower Caves | Destroyed 7 combat bots 25183 | -6/Lower Caves | Discovered exit to Factory (range 15) 26145 | -6/Lower Caves | Spotted B-75 Beast 26179 | -6/Lower Caves | Attracted the attention of an 0b10 checkpoint 26204 | -6/Lower Caves | Destroyed B-75 Beast 26488 | -6/Lower Caves | Attacked by a delusional Derelict stockpiling Unaware 26825 | -6/Lower Caves | Discovered new exit (range 10) 27390 | -6/Lower Caves | Entered Zion 27390 | -6/Zion | Accompanied by 5 allies 27647 | -6/Zion | Discovered new exit (range 15) 27913 | -6/Zion | Attacked by Zionites 27915 | -6/Zion | Spotted Z6-SLE(B) 28058 | -6/Zion | Entered Proximity Caves 28210 | -5/Proximity Caves | Attracted the attention of an 0b10 checkpoint 28779 | -5/Proximity Caves | Learned location of Armory (-3) 28854 | -5/Proximity Caves | Learned location of 2 exits from Factory 28961 | -5/Proximity Caves | Discovered exit to Factory (range 15) 29094 | -5/Proximity Caves | Entered Factory 29094 | -5/Factory | Accompanied by 4 allies 29094 | -5/Factory | Evolved 2 slots: Power x1, Utility x1 29095 | -5/Factory | Identified exit to Extension 29095 | -5/Factory | Identified exit to Factory 29097 | -5/Factory | Loaded intel: 26 terminal locations 29209 | -5/Factory | Identified exit to Upper Caves 29733 | -5/Factory | Discovered exit to Factory (range 7) 29781 | -5/Factory | Garrison activated, responded to threat 29809 | -5/Factory | Fabricated Combat Drone Bay? 30474 | -5/Factory | Found Imp. Powered Armor 30998 | -5/Factory | Discovered exit to Factory (range 18) 31054 | -5/Factory | Build established: Hacker-Mutant 31186 | -5/Factory | Fabricated Combat Drone Bay (x1) 31194 | -5/Factory | First assault squad dispatched 31219 | -5/Factory | Incoming assault squad redirected 31473 | -5/Factory | Sucked down chute 31473 | -5/Factory | Entered Waste 31474 | -5/Waste | Met a frightened Derelict 31495 | -5/Waste | 1 allies followed down the chute 31557 | -5/Waste | Destroyed C-40 Crusher 31652 | -5/Waste | Allies destroyed C-40 Crusher 31670 | -5/Waste | Destroyed C-40 Crusher 31697 | -5/Waste | Allies destroyed C-40 Crusher 31714 | -5/Waste | Allies destroyed C-40 Crusher 32038 | -5/Waste | Destroyed C-40 Crusher 32113 | -5/Waste | Warlord forces began an assault 32295 | -5/Waste | Discovered new exit (range 12) 32738 | -5/Waste | Entered Factory 32738 | -5/Factory | Accompanied by 16 allies 32869 | -5/Factory | Garrison activated, responded to threat 32902 | -5/Factory | Incoming investigation squad redirected 33038 | -5/Factory | First assault squad dispatched 33146 | -5/Factory | Incoming assault squad redirected 33251 | -5/Factory | Incoming investigation squad redirected 33366 | -5/Factory | Discovered exit to Factory (range 13) 33377 | -5/Factory | Discovered exit to Upper Caves (range 6) 33470 | -5/Factory | Discovered exit to Factory (range 5) 33777 | -5/Factory | P-70 Sage assimilated allied QC-86R(m) 33897 | -5/Factory | Discovered exit to Factory (range 21) 34159 | -5/Factory | Discovered exit to Factory (range 14) 34307 | -5/Factory | Fabricated Adv. Force Field (x2) 34365 | -5/Factory | Garrison activated, responded to threat 34436 | -5/Factory | Repaired Lyr. Heavy Armor Plating 34673 | -5/Factory | Incoming assault squad redirected 34711 | -5/Factory | Destroyed 7 combat bots 35156 | -5/Factory | Incoming assault squad redirected 35166 | -5/Factory | Incoming assault squad redirected 35185 | -5/Factory | Entered Extension 35485 | -5/Extension | First assault squad dispatched 35504 | -5/Extension | Build established: Scavenger-Mutant 35630 | -5/Extension | Incoming assault squad redirected 35813 | -5/Extension | Rescued a captive Derelict 35814 | -5/Extension | Rescued a captive Derelict 35846 | -5/Extension | Rescued a captive Derelict 36134 | -5/Extension | Allies destroyed B-75 Beast 36152 | -5/Extension | Spotted B-75 Beast 36164 | -5/Extension | Allies destroyed B-75 Beast 36487 | -5/Extension | Rescued a captive Derelict 36621 | -5/Extension | Rescued a captive Derelict 36639 | -5/Extension | Rescued a captive Derelict 36640 | -5/Extension | Rescued a captive Derelict 36704 | -5/Extension | Rescued a captive Derelict 36705 | -5/Extension | Rescued a captive Derelict 36727 | -5/Extension | Rescued a captive Derelict 36728 | -5/Extension | Rescued a captive Derelict 37219 | -5/Extension | Rescued a captive Derelict 37314 | -5/Extension | Rescued A7 37542 | -5/Extension | Discovered new exit (range 16) 37544 | -5/Extension | Discovered exit to Factory (range 15) 37656 | -5/Extension | Rescued a captive Derelict 37657 | -5/Extension | Rescued a captive Derelict 37710 | -5/Extension | Entered Cetus 37710 | -5/Cetus | Accompanied by 6 allies (A7) 37715 | -5/Cetus | Acquired a Cetus Manufacturing Module code from A7 37734 | -5/Cetus | Spotted Cetus Guard 37734 | -5/Cetus | Spotted Cetus Guard 37734 | -5/Cetus | Spotted Cetus Guard 37734 | -5/Cetus | Spotted Cetus Guard 37741 | -5/Cetus | Allies destroyed Cetus Guard 37743 | -5/Cetus | Allies destroyed Cetus Guard 37751 | -5/Cetus | Allies destroyed Cetus Guard 37752 | -5/Cetus | Allies destroyed Cetus Guard 37818 | -5/Cetus | Cetus Manufacturing Module disabled 37863 | -5/Cetus | Failed to start Cetus Manufacturing Module 37879 | -5/Cetus | Escorted A7 to Cetus Mainframe 37900 | -5/Cetus | Discovered new exit (range 15) 38115 | -5/Cetus | Entered Archives 38115 | -5/Archives | Accompanied by 6 allies (A7) 38120 | -5/Archives | Received a hacking code to weaken MAIN.C 38137 | -5/Archives | Discovered new exit (range 24) 38194 | -5/Archives | Discovered exit to Factory (range 16) 38213 | -5/Archives | Discovered new exit (range 15) 40336 | -5/Archives | Entered Hub_04(d) 40336 | -5/Hub_04(d) | Accompanied by 6 allies 40336 | -5/Hub_04(d) | Discovered exit to Factory (range 11) 41121 | -5/Hub_04(d) | Garrison activated, responded to threat 41130 | -5/Hub_04(d) | Network Hub disabled 41143 | -5/Hub_04(d) | Spotted Lightning 41143 | -5/Hub_04(d) | Spotted Lightning 41144 | -5/Hub_04(d) | Spotted Lightning 41164 | -5/Hub_04(d) | Destroyed Lightning 41172 | -5/Hub_04(d) | System corruption reached 10% 41175 | -5/Hub_04(d) | Incoming assault squad redirected 41196 | -5/Hub_04(d) | Destroyed Lightning 41231 | -5/Hub_04(d) | Found Prototype Device 41232 | -5/Hub_04(d) | Identified Exp. EM Disruption Field 41236 | -5/Hub_04(d) | First assault squad dispatched 41237 | -5/Hub_04(d) | Found Prototype Device 41292 | -5/Hub_04(d) | Allies destroyed Lightning 41335 | -5/Hub_04(d) | Discovered exit to Factory (range 26) 41377 | -5/Hub_04(d) | Incoming investigation squad redirected 41863 | -5/Hub_04(d) | Incoming assault squad redirected 41923 | -5/Hub_04(d) | Entered Factory 41923 | -4/Factory | Evolved 2 slots: Utility x2 41987 | -4/Factory | Identified Exp. Phase Shifter 42464 | -4/Factory | Found Prototype Hackware 42538 | -4/Factory | Identified exit to Upper Caves 42870 | -4/Factory | Incoming investigation squad redirected 42929 | -4/Factory | P-70 Sage assimilated hostile G-67 Veteran 42936 | -4/Factory | Fabricated Combat Drone Bay? 43657 | -4/Factory | Discovered new exit (range 60) 43790 | -4/Factory | Garrison activated, responded to threat 44086 | -4/Factory | Repaired Centrium Heavy Treads 44145 | -4/Factory | Build established: Hacker-Mutant 44558 | -4/Factory | Build established: Scavenger-Mutant 44788 | -4/Factory | Identified Exp. System Shield 44920 | -4/Factory | Fabricated Combat Drone Bay? 44923 | -4/Factory | First assault squad dispatched 44947 | -4/Factory | Incoming assault squad redirected 45190 | -4/Factory | Incoming assault squad redirected 45204 | -4/Factory | Repaired Centrium Heavy Treads 45250 | -4/Factory | Sucked down chute 45250 | -4/Factory | Entered Waste 45265 | -4/Waste | EMP discharged 45342 | -4/Waste | Destroyed C-40 Crusher 45365 | -4/Waste | EMP discharged 45365 | -4/Waste | Spotted C-40 Crusher 45386 | -4/Waste | Destroyed C-40 Crusher 45392 | -4/Waste | Allies destroyed C-40 Crusher 45399 | -4/Waste | Allies destroyed C-40 Crusher 45465 | -4/Waste | EMP discharged 45534 | -4/Waste | Destroyed C-40 Crusher 45552 | -4/Waste | Destroyed C-40 Crusher 45565 | -4/Waste | EMP discharged 45665 | -4/Waste | EMP discharged 45682 | -4/Waste | Discovered new exit (range 11) 45698 | -4/Waste | Entered Factory 46122 | -4/Factory | Incoming investigation squad redirected 46190 | -4/Factory | Fabricated Combat Drone Bay (x1) 46499 | -4/Factory | Discovered new exit (range 16) 46591 | -4/Factory | Repaired Imp. System Restoration Module 46698 | -4/Factory | Repaired Broken Adv. Cloaking Device? 46946 | -4/Factory | Repaired Quantum Reactor 47036 | -4/Factory | Repaired Enh. Coil Gun 47133 | -4/Factory | Build established: Hacker-Mutant 47146 | -4/Factory | Repaired Centrium Medium Armor Plating 47203 | -4/Factory | Repaired Imp. Powered Armor 47279 | -4/Factory | Repaired Quantum Reactor 47330 | -4/Factory | Repaired Imp. System Restoration Module 47420 | -4/Factory | Repaired Enh. Coil Gun 47493 | -4/Factory | Repaired Rocket Array 48221 | -4/Factory | Build established: Scavenger-Mutant 48248 | -4/Factory | Incoming investigation squad redirected 48275 | -4/Factory | Fabricated Adv. Hacking Suite (x1) 48457 | -4/Factory | Incoming investigation squad redirected 48562 | -4/Factory | Fabricated Adv. Force Field (x2) 48665 | -4/Factory | Build established: Hacker-Mutant 49347 | -4/Factory | Found Prototype Launcher 49347 | -4/Factory | Identified Tesla Bomb Launcher 49448 | -4/Factory | First assault squad dispatched 49636 | -4/Factory | Build established: Hacker-Skirmisher 50126 | -4/Factory | Entered Upper Caves 50126 | -4/Upper Caves | Accompanied by 2 allies 50149 | -4/Upper Caves | Build established: Scavenger-Mutant 50364 | -4/Upper Caves | Learned 4 Research zone layouts 50428 | -4/Upper Caves | Learned Research interactive machine intel 50971 | -4/Upper Caves | Encountered a Warlord checkpoint 50985 | -4/Upper Caves | Discovered new exit (range 7) 51061 | -4/Upper Caves | Entered another Upper Caves area 51061 | -4/Upper Caves | Accompanied by 1 ally 51103 | -4/Upper Caves | Discovered new exit (range 22) 51344 | -4/Upper Caves | Spotted B-86 Titan 51356 | -4/Upper Caves | Allies destroyed B-86 Titan 51551 | -4/Upper Caves | Attracted the attention of an 0b10 checkpoint 51711 | -4/Upper Caves | Attracted the attention of an 0b10 outpost 51774 | -4/Upper Caves | Destroyed 9 combat bots 51989 | -4/Upper Caves | Discovered new exit (range 15) 52031 | -4/Upper Caves | Ambushed by wild Derelicts 52299 | -4/Upper Caves | Entered Warlord 52299 | -4/Warlord | Accompanied by 2 allies 52636 | -4/Warlord | Received a Watcher feed algorithm from an ecstatic Tinkerer 52759 | -4/Warlord | Met Warlord 52780 | -4/Warlord | Opened Warlord's prototype stash 52784 | -4/Warlord | Warlord's base attacked by MAIN.C 52786 | -4/Warlord | Found Prototype Reactor 52786 | -4/Warlord | Identified Vortex Chain Reactor 52808 | -4/Warlord | Found Prototype Hackware 52816 | -4/Warlord | Found Prototype Device 52816 | -4/Warlord | Identified Exp. Focal Shield 52819 | -4/Warlord | Found Prototype Processor 52819 | -4/Warlord | Identified Spectral Analyzer 52969 | -4/Warlord | Found Prototype Launcher 52969 | -4/Warlord | Identified Vortex Catalyst Activator 52973 | -4/Warlord | Found Prototype Energy Cannon 52973 | -4/Warlord | Identified Vortex Driver 52993 | -4/Warlord | Found Prototype Energy Gun 52994 | -4/Warlord | Identified Vortex Shotgun 53099 | -4/Warlord | Build established: Hacker-Mutant 53134 | -4/Warlord | Warlord forces counterattacked 53211 | -4/Warlord | Spotted Striker 53218 | -4/Warlord | Spotted Striker 53229 | -4/Warlord | P-80 Master assimilated allied Swordsman 7a 53235 | -4/Warlord | Allies destroyed Striker 53244 | -4/Warlord | Spotted Executioner 53305 | -4/Warlord | Discovered new exit (range 12) 53346 | -4/Warlord | Entered Proximity Caves 53346 | -3/Proximity Caves | Accompanied by 2 allies 53440 | -3/Proximity Caves | Spotter reported a threat 53442 | -3/Proximity Caves | Spotter reported a threat 53902 | -3/Proximity Caves | Discovered new exit (range 12) 54013 | -3/Proximity Caves | Entered Research 54013 | -3/Research | Accompanied by 2 allies 54013 | -3/Research | Evolved 2 slots: Power x1, Utility x1 54014 | -3/Research | Identified exit to Research 54014 | -3/Research | Identified Ghost Barrier 54016 | -3/Research | Loaded intel: 42 interactive machine locations 54510 | -3/Research | Spotted B-86 Titan 54711 | -3/Research | Repaired Centrium Heavy Treads 54875 | -3/Research | Repaired Centrium Heavy Treads 56726 | -3/Research | Discovered new exit (range 14) 56761 | -3/Research | Found Exp. EM Disruption Field 56811 | -3/Research | Found Antimissile System 57381 | -3/Research | Repaired Imp. Transmission Jammer 57513 | -3/Research | First assault squad dispatched 57743 | -3/Research | Incoming investigation squad redirected 57799 | -3/Research | Incoming investigation squad redirected 57864 | -3/Research | Fabricated Combat Drone Bay (x1) 57981 | -3/Research | Build established: Scavenger-Mutant 58324 | -3/Research | Fabricated Combat Drone Bay? 58334 | -3/Research | Incoming investigation squad redirected 58341 | -3/Research | Build established: Hacker-Mutant 58534 | -3/Research | Incoming assault squad redirected 58606 | -3/Research | Destroyed 7 combat bots 59144 | -3/Research | Entered another Research area 59144 | -2/Research | Accompanied by 4 allies 59144 | -2/Research | Warlord forces began assault on 0b10 59144 | -2/Research | Evolved 2 slots: Propulsion x2 59254 | -2/Research | Research machine network offline 59499 | -2/Research | Borebot progress halted 59568 | -2/Research | Met up with Warlord 59755 | -2/Research | Spotted Striker 59771 | -2/Research | Borebot progress halted 59772 | -2/Research | Destroyed Striker 59846 | -2/Research | Spotted Striker 59848 | -2/Research | Spotted Executioner 59868 | -2/Research | Spotted Striker 59869 | -2/Research | Spotted Striker 59872 | -2/Research | Spotted Striker 59875 | -2/Research | Destroyed Striker 59875 | -2/Research | Spotted Executioner 59879 | -2/Research | Spotted Striker 59881 | -2/Research | Destroyed Striker 59886 | -2/Research | Destroyed Striker 59897 | -2/Research | Destroyed Executioner 59900 | -2/Research | Destroyed Striker 59903 | -2/Research | Destroyed Executioner 59930 | -2/Research | Destroyed 9 combat bots 59938 | -2/Research | Lost 9 parts (2n6u1w) 59985 | -2/Research | Discovered new exit (range 10) 59987 | -2/Research | Spotted Striker 59995 | -2/Research | Borebot progress halted 60009 | -2/Research | Spotted Striker 60014 | -2/Research | Identified exit to Quarantine 60032 | -2/Research | Destroyed Striker 60135 | -2/Research | Found Vortex Chain Reactor 60261 | -2/Research | Found Launcher Loader 60281 | -2/Research | Build established: Scavenger-Mutant 60346 | -2/Research | Spotted B-90 Cyclops 60354 | -2/Research | Discovered new exit (range 5) 60359 | -2/Research | Identified exit to Access 60381 | -2/Research | Found Gamma Bomb Array 60385 | -2/Research | Found Gamma Bomb Array 60398 | -2/Research | Entered Access 60398 | -1/Access | Evolved 2 slots: Utility x1, Weapon x1 60691 | -1/Access | First assault squad dispatched 60716 | -1/Access | Incoming assault squad redirected 60876 | -1/Access | Spotted B-99 Colossus 60898 | -1/Access | Incoming investigation squad redirected 60933 | -1/Access | Fabricated Combat Drone Bay? 61365 | -1/Access | Discovered new exit (range 8) 61420 | -1/Access | Incoming assault squad redirected 61586 | -1/Access | Build established: Hacker-Mutant 61738 | -1/Access | Entered Command 62133 | -1/Command | Spotted B-99 Colossus 62153 | -1/Command | Build established: Scavenger-Mutant 62454 | -1/Command | Build established: Hacker-Mutant 64099 | -1/Command | Repaired Exp. EM Disruption Field 64137 | -1/Command | Repaired Lyr. Heavy Armor Plating 64196 | -1/Command | Repaired Helical Railgun 64427 | -1/Command | Disengaged cave seal 64427 | -1/Command | Derelicts emerged from the dark tunnel 64428 | -1/Command | Welcomed Warlord to Command 64552 | -1/Command | Disengaged cave seal 64552 | -1/Command | Derelicts emerged from the dark tunnel 64734 | -1/Command | Spotted M Guard 64734 | -1/Command | Spotted M Guard 64739 | -1/Command | Warlord commented on Warlord statues 64739 | -1/Command | Spotted Combat Programmer 64740 | -1/Command | Spotted Combat Programmer 64745 | -1/Command | Combat Programmer assimilated allied G3-HOP(L) 64746 | -1/Command | Spotted G3-HOP(L) 64784 | -1/Command | First assault squad dispatched 64800 | -1/Command | All MAIN.C guards destroyed 64808 | -1/Command | Lost 5 parts (1p4u) 64844 | -1/Command | Found Prototype Launcher 64844 | -1/Command | Identified Adv. Micro-nuke Launcher 64887 | -1/Command | Met MAIN.C 64890 | -1/Command | 0b10 Conduit disabled 64950 | -1/Command | Destroyed MAIN.C Shell 64953 | -1/Command | MAIN.C activated Command garrisons 64956 | -1/Command | Surrendered to MAIN.C 64956 | -1/Command | Loaded intel: 49 machine locations 64956 | -1/Command | Loaded intel: 93 trap records 64956 | -1/Command | Identified exit to Surface 64956 | -1/Command | Discovered exit to Surface (range 81) 64956 | -1/Command | Discovered exit to Surface (range 52) 64956 | -1/Command | Spotted FU-C9R(g) 64989 | -1/Command | Lost 6 parts (2p1n3u) 65177 | -1/Command | MAIN.C activated Command garrisons 65211 | -1/Command | Found Prototype Reactor 65211 | -1/Command | Identified Zero-point Reactor 65215 | -1/Command | Found Prototype Device 65215 | -1/Command | Identified Adv. Kinecellerator 65217 | -1/Command | Unknown forces attacked Command 65218 | -1/Command | Spotted EQ-001 65218 | -1/Command | Spotted EQ-000 65222 | -1/Command | Spotted EQ-012 65234 | -1/Command | Spotted EQ-002 65272 | -1/Command | Core integrity fell below 50% 65275 | -1/Command | System corruption reached 10% 65284 | -1/Command | Spotted EQ-003 65299 | -1/Command | Lost 6 parts (2p4u) 65313 | -1/Command | Spotted EQ-030 65313 | -1/Command | Spotted EQ-026 65313 | -1/Command | Spotted EQ-019 65313 | -1/Command | Spotted EQ-018 65313 | -1/Command | Spotted EQ-020 65314 | -1/Command | Betrayed MAIN.C 65324 | -1/Command | Destroyed EQ-002 65335 | -1/Command | Core integrity fell below 20% 65338 | -1/Command | Released all parts (4) 65339 | -1/Command | Destroyed by EQ-020 with Railgun Last Messages --------------- 65335_ Penetrated by Slug. 65335_ Slug penetrates 0b10 Conduit. 65335_ Zero-point Reactor destroyed. 65335_ Penetrated by Slug. 65335_ Enh. Nova Cannon blasted off. 65336_ Slug penetrates EQ-020. 65336_ H-88 Terminator destroyed. 65337_ System corrupted: Matter fused (-10). 65337_ Penetrated by Slug. 65337_ Exp. Biometal Medium Treads destroyed. 65338_ Released Antimissile System. 65338_ Released Hcp. Storage Unit. 65338_ Released Exp. Core Analyzer. 65338_ Released Spectral Analyzer. 65338_ Knocked back. 65338_ Penetrated by Slug. 65338_ Slug penetrates 0b10 Conduit. 65339_ Extracted 14 energy. 65339_ Penetrated by Slug. [Achievement: Punisher] Map ----- +----------------------------------------------------+ | # [ ""#??????????????????????????????#?# | | # ""#??????????????????????????????#?# | | # ""#??????????????????????????????#?# | | #! "#??????????????????????????????#?# | | #] [ ###??????????????????????????????#?# | | # #????????????????????????????????#?# | | # #????????????????????????????????#?# | | #########????????????????????????????????#?# | | ### #????????????????????????????????????????#?# | | #?# #????????????????????????????????????????#?# | | #?# #????????????????????????????????????????#?# | | #?# #????????????????????????????????????????#?# | | #?# #????????????????????????????????????????#?# | | #?# #????????????????????????????????????????#?# | | +### #????????????????????????????????????????#?# | | # #????????????????????????????????????????#?# | | + #????????????????????????????????????????#?# | | # #????????????????????????????????????????#?# | | #### ##????????###########################????#?# | | ### #????????#?????????????????????????#????#?# | | #????????#?#######################?#????#?# | | #????????#?#"" "" "" ########## | | +## #????????#?#"" % % #?#??????? | | ## ##????????#?# % % ########## | | ## #?????????#?#" =[[ = =%; % == | | ## #?????????#?# %!!@ % % ; = % | | + #?????????#?# ]]=] Q%=%|; % = | | ## #?????????#?# % [ % [%![;######### | | ### #?????????#?# % ###??????? | | #?# #?????????#?# % ########## | | ###?# #?????????#?#%! ! %* % #?#????#?# | | ????# #?????????#?# %! =| % #?#????#?# | | ????# #?????????#?# = % ! #?#????#?# | | ????# ###???????#?# = % % "#?#????#?# | | ????# #"###?????#?#[% % % %"%#?#????#?# | | ##### #########%]!%$Q *% #?#????#?# | | ]%%!Q % Q Q"" " #?#????#?# | | % Q!=* " "" #?#????#?# | | ! " #?#????#?# | | ### # ###### "" " " #?#????#?# | | ??# ##???#?# """" """#?#????#?# | | ??## ####?#?# " " " " #?#????#?# | | ??# # #?#?#######################?#????#?# | | ??## #?#?????????????????????????#????#?# | | #### #?###########################????#?# | | #????????????????????????????????#?# | | # #????????????????????????????????#?# | | """ #????????????????????????????????#?# | | "Y" #????????????????????????????????#?# | | " " #????????????????????????????????#?# | +----------------------------------------------------+ Best States ------------- Heat Dissipation 90 Energy Generation 75 Energy Capacity 950 Matter Stores 300 Matter Capacity 300 Sight Range 24 Robot Scan Range 15 Terrain Scan Range 24 Terrain Scan Density 10 Jamming Range 14 Cloak Strength 4 Armor Coverage 1650 Resistance: EM 75 Core Shielding 30 Propulsion Shielding 33 Point Defense Rating 240 Weapon Cycling 20 Phase Shifting 20 Evasion (%) 75 Targeting Accuracy 8 Core Analysis 8 Recoil Reduction 6 Kinecelleration 50 Offensive Hacking 40 Defensive Hacking 36 Authchip Count 5 Item Schematics ----------------- Combat Drone Bay | -7/Data Miner | Free Lgt. Regenerative Plating | -7/Data Miner | Free Cld. Aerolev Unit | -7/Data Miner | Free Thermal Defense Suite | -7/Data Miner | Free Antimatter Cannon | -7/Data Miner | Free Gyrokinetic Inverter | -7/Data Miner | Free Imp. Kinecellerator | -7/Data Miner | Free Lance | -7/Data Miner | Free Cmb. Airjet | -7/Data Miner | Free Wave Gun | -7/Data Miner | Free Phase Gun | -7/Data Miner | Free Adv. Force Field | -6/Factory | Scanalyzed Imp. Heavy Siege Treads | -6/Factory | Scanalyzed Rocket Array | -6/Factory | Scanalyzed Helical Railgun | -6/Factory | Scanalyzed Imp. Heavy Armor Plating | -6/Factory | Scanalyzed Imp. Trap Scanner | -6/Zion | Archive KE Penetrator | -6/Zion | Archive Imp. Remote Shield | -6/Zion | Archive Stasis Canceller | -6/Zion | Archive Imp. Recalibrator | -6/Zion | Archive Nuclear Pulse Thruster | -6/Zion | Archive Hvy. Phase Cannon | -6/Zion | Archive Magnetic Acceleration Cannon | -6/Zion | Archive Arm. Medium Treads | -6/Zion | Archive Imp. Arc Projector | -6/Zion | Archive Fusion Compressor | -6/Zion | Archive Spk. Heavy Treads | -6/Zion | Archive Plasma Flamer | -6/Zion | Archive Adv. Hacking Suite | -5/Factory | Scanalyzed Exp. EM Disruption Field | -4/Factory | Scanalyzed Enh. Nova Cannon | -4/Factory | Hacked Robot Schematics ------------------ M-14 Sweeper | -7/Data Miner | Free G-47 Trooper | -7/Data Miner | Free M-28 Smith | -7/Data Miner | Free S-27 Virus | -7/Data Miner | Free A-15 Conveyor | -7/Data Miner | Free K-01 Serf | -6/Zion | Archive X-67 Chaingunner | -6/Zion | Archive H-77 Assassin | -6/Zion | Archive Fabricated ------------ Hyp. Coil Gun | x2 | -6/Factory | Preloaded Combat Drone Bay | x1 | -6/Factory | Authchip Combat Drone Bay | x1 | -6/Factory | Authchip Combat Drone Bay | x1 | -6/Factory Combat Drone Bay | x1 | -6/Factory Combat Drone Bay | x1 | -5/Factory Combat Drone Bay | x1 | -5/Factory Adv. Force Field | x2 | -5/Factory | Preloaded Combat Drone Bay | x1 | -4/Factory Combat Drone Bay | x1 | -4/Factory Combat Drone Bay | x1 | -4/Factory Adv. Hacking Suite | x1 | -4/Factory Adv. Force Field | x2 | -4/Factory Combat Drone Bay | x1 | -3/Research Combat Drone Bay | x1 | -3/Research Combat Drone Bay | x1 | -1/Access Alien Tech Used ----------------- None Achievements -------------- Corridor Of Doom Meet Your Maker No Explosion For You Punisher void main() Challenges ------------ None Game ------ Seed HybridEnhancedShielding Manual? 0 Play Time 09:00:58 Cumulative 152.3 hours Start 2024.01.25 @ 08:59:17 End 2024.01.26 @ 22:19:09 Sessions 13 Manual Loads 0 Difficulty Rogue Special Mode None Game No. 135 Rogue 135 Adventurer 0 Explorer 0 Win Type - Total 2 Types 2/0/0/0/0/0/0/0/0 Lore% 58 Gallery% 64 Achievement% 56 Wizard Run 0 Options --------- ASCII 0 Keyboard 1 Movement Numpad Keybinds 0 Fullscreen 2 Font 18/SmallcapsGlow Map View 76x50 Tactical HUD 1 Map Filters NONE Filters NONE Steam 1 RUN: 55591917-4132-48dd-a623-7340e8c35ca9